Workbook

Sheet 目录
A1: 目 录
A2: 一、一般公共预算
A3: 表1、2022年一般公共预算收入表
A4: 表2、2022年一般公共预算支出表
A5: 表3、2022年一般公共预算本级支出表
A6: 表4、2022年一般公共预算本级财力基本支出表
A7: 表5、2022年一般公共预算收支平衡表
A8: 表6、2022年一般公共预算支出表（功能科目）
A9: 表7、2022年一般公共预算基本支出表（政府经济科目）
A10: 表8、2022年一般公共预算对下税收返还和转移支付预算分项目表
A11: 表9、2022年一般公共预算对下税收返还和转移支付预算分地区表
A12: 表10、2021年政府一般债券限额和余额情况表
A13: 二、政府性基金预算
A14: 表11、2022年政府性基金预算收入表
A15: 表12、2022年政府性基金支出预算表
A16: 表13、2022年政府性基金本级支出预算表
A17: 表14、2022年政府性基金转移支付预算收入分项目表
A18: 表15、2022年政府性基金转移支付预算收入分地区表
A19: 表16、2021年政府专项债券限额和余额情况表
A20: 三、国有资本经营预算
A21: 表17、2022年国有资本经营预算收入表
A22: 表18、2022年国有资本经营预算支出表
A23: 四、社会保险基金预算
A24: 表19、2022年社会保险基金预算收入预算表
A25: 表20、2022年社会保险基金预算支出预算表
A26: 五、债务情况表
A27: 表21、2021年地方债务限额余额情况表
A28: 表22、2021年末地方政府债券发行、还本付息情况表
A29: 表23、2021年新增债券资金使用安排情况表
A30: 表24、2022年地方政府债券还本付息预算表
A31: 六、其他
A32: 表25、2022年一般公共预算“三公”经费预算表
A33: 表26、2022年预算绩效管理工作要点
A34: 表27、2021年乡村振兴资金公示网站汇总表

Sheet 表1一般公共预算收入表
A1: 表1
A2: 2022年一般公共预算收入表
D3: 单位：万元
A4: 项目 | B4: 上年决算数 | C4: 预算数 | D4: 预算数为决算数%
A5: 一、税收收入 | B5: =SUM(B6:B21) -> 27247 | C5: =SUM(C6:C21) -> 28900 | D5: =C5/B5 -> 1.06
A6: 增值税 | B6: 10732 | C6: 13007 | D6: =C6/B6 -> 1.21
A7: 企业所得税 | B7: 1131 | C7: 2470 | D7: 2.18
A8: 企业所得税退税
A9: 个人所得税 | B9: 250 | C9: 330 | D9: 1.32
A10: 资源税
A11: 城市维护建设税 | B11: 1998 | C11: 1732 | D11: 0.87
A12: 房产税 | B12: 1183 | C12: 912 | D12: 0.77
A13: 印花税 | B13: 292 | C13: 274 | D13: 0.94
A14: 城镇土地使用税 | B14: 1242 | C14: 1452 | D14: 1.17
A15: 土地增值税 | B15: 2256 | C15: 708 | D15: 0.31
A16: 车船税 | B16: 2476 | C16: 2450 | D16: 0.99
A17: 耕地占用税 | B17: 1207 | C17: 2261 | D17: 1.87
A18: 契税 | B18: 4480 | C18: 3304 | D18: 0.74
A19: 烟叶税
A20: 环境保护税
A21: 其他税收收入 | C21: 0
A22: 二、非税收入 | B22: =SUM(B23:B30) -> 10259 | C22: =SUM(C23:C30) -> 9600 | D22: 0.94
A23: 专项收入 | B23: 3502 | C23: 3135 | D23: 0.90
A24: 行政事业性收费收入 | B24: 1172 | C24: 1150 | D24: 0.98
A25: 罚没收入 | B25: 438 | C25: 281 | D25: 0.64
A26: 国有资本经营收入
A27: 国有资源（资产）有偿使用收入 | B27: 4628 | C27: 4302 | D27: 0.93
A28: 捐赠收入
A29: 政府住房基金收入 | B29: 46 | C29: 50 | D29: 1.09
A30: 其他收入 | B30: 473 | C30: 682 | D30: 1.44
A33: 收入合计 | B33: =B5+B22 -> 37506 | C33: =C5+C22 -> 38500 | D33: 1.03

Sheet 表2一般公共预算支出表
A1: 表2
A2: 2022年一般公共预算支出表
D3: 单位：万元
A4: 项目 | B4: 上年决算数 | C4: 预算数 | D4: 预算数为决算数%
A5: 一般公共预算支出合计 | B5: =B6+B235+B275+B294+B384+B436+B492+B549+B676+B749+B826+B849+B956+B1014+B1078+B1098+B1128+B1138+B1183+B1203+B1247+B1296+B1299 -> 189211 | C5: =C6+C235+C275+C294+C384+C436+C492+C549+C676+C749+C826+C849+C956+C1014+C1078+C1098+C1128+C1138+C1183+C1203+C1247+C1296+C1299 -> 208300 | D5: =C5/B5 -> 1.10
A6: 一般公共服务支出 | B6: =SUM(B7+B19+B28+B39+B50+B61+B72+B80+B89+B102+B111+B122+B134+B141+B149+B155+B162+B169+B176+B183+B190+B198+B204+B210+B217+B232) -> 28130 | C6: =SUM(C7+C19+C28+C39+C50+C61+C72+C80+C89+C102+C111+C122+C134+C141+C149+C155+C162+C169+C176+C183+C190+C198+C204+C210+C217+C232) -> 30947 | D6: =C6/B6 -> 1.10
A7: 人大事务 | B7: =SUM(B8:B18) -> 814 | C7: =SUM(C8:C18) -> 896 | D7: 1.10
A8: 行政运行 | B8: 601 | C8: 661 | D8: 1.10
A9: 一般行政管理事务 | B9: 19 | C9: 21 | D9: 1.11
A10: 机关服务 | B10: 0 | C10: 0
A11: 人大会议 | B11: 125 | C11: 138 | D11: 1.10
A12: 人大立法 | B12: 0 | C12: 0
A13: 人大监督 | B13: 0 | C13: 0
A14: 人大代表履职能力提升 | B14: 0 | C14: 0
A15: 代表工作 | B15: 0 | C15: 0
A16: 人大信访工作 | B16: 0 | C16: 0
A17: 事业运行 | B17: 0 | C17: 0
A18: 其他人大事务支出 | B18: 69 | C18: 76 | D18: 1.10
A19: 政协事务 | B19: =SUM(B20:B27) -> 547 | C19: =SUM(C20:C27) -> 602 | D19: 1.10
A20: 行政运行 | B20: 426 | C20: 469 | D20: 1.10
A21: 一般行政管理事务 | B21: 0 | C21: 0
A22: 机关服务 | B22: 0 | C22: 0
A23: 政协会议 | B23: 92 | C23: 101 | D23: 1.10
A24: 委员视察 | B24: 0 | C24: 0
A25: 参政议政 | B25: 0 | C25: 0
A26: 事业运行 | B26: 0 | C26: 0
A27: 其他政协事务支出 | B27: 29 | C27: 32 | D27: 1.10
A28: 政府办公厅(室)及相关机构事务 | B28: =SUM(B29:B38) -> 6038 | C28: =SUM(C29:C38) -> 6643 | D28: 1.10
A29: 行政运行 | B29: 1026 | C29: 1129 | D29: 1.10
A30: 一般行政管理事务 | B30: 0 | C30: 0
A31: 机关服务 | B31: 1211 | C31: 1332 | D31: 1.10
A32: 专项服务 | B32: 0 | C32: 0
A33: 专项业务及机关事务管理 | B33: 0 | C33: 0
A34: 政务公开审批 | B34: 2731 | C34: 3004 | D34: 1.10
A35: 信访事务 | B35: 335 | C35: 369 | D35: 1.10
A36: 参事事务 | B36: 0 | C36: 0
A37: 事业运行 | B37: 35 | C37: 39 | D37: 1.11
A38: 其他政府办公厅(室)及相关机构事务支出 | B38: 700 | C38: 770 | D38: 1.10
A39: 发展与改革事务 | B39: =SUM(B40:B49) -> 1226 | C39: =SUM(C40:C49) -> 1349 | D39: 1.10
A40: 行政运行 | B40: 184 | C40: 202 | D40: 1.10
A41: 一般行政管理事务 | B41: 79 | C41: 87 | D41: 1.10
A42: 机关服务 | B42: 0 | C42: 0
A43: 战略规划与实施 | B43: 0 | C43: 0
A44: 日常经济运行调节 | B44: 0 | C44: 0
A45: 社会事业发展规划 | B45: 0 | C45: 0
A46: 经济体制改革研究 | B46: 0 | C46: 0
A47: 物价管理 | B47: 25 | C47: 28 | D47: 1.12
A48: 事业运行 | B48: 0 | C48: 0
A49: 其他发展与改革事务支出 | B49: 938 | C49: 1032 | D49: 1.10
A50: 统计信息事务 | B50: =SUM(B51:B60) -> 373 | C50: =SUM(C51:C60) -> 410 | D50: 1.10
A51: 行政运行 | B51: 149 | C51: 164 | D51: 1.10
A52: 一般行政管理事务 | B52: 3 | C52: 3 | D52: 1.00
A53: 机关服务 | B53: 0 | C53: 0
A54: 信息事务 | B54: 0 | C54: 0
A55: 专项统计业务 | B55: 0 | C55: 0
A56: 统计管理 | B56: 0 | C56: 0
A57: 专项普查活动 | B57: 0 | C57: 0
A58: 统计抽样调查 | B58: 0 | C58: 0
A59: 事业运行 | B59: 0 | C59: 0
A60: 其他统计信息事务支出 | B60: 221 | C60: 243 | D60: 1.10
A61: 财政事务 | B61: =SUM(B62:B71) -> 1674 | C61: =SUM(C62:C71) -> 1841 | D61: 1.10
A62: 行政运行 | B62: 659 | C62: 725 | D62: 1.10
A63: 一般行政管理事务 | B63: 379 | C63: 417 | D63: 1.10
A64: 机关服务 | B64: 0 | C64: 0
A65: 预算改革业务 | B65: 0 | C65: 0
A66: 财政国库业务 | B66: 97 | C66: 107 | D66: 1.10
A67: 财政监察 | B67: 0 | C67: 0
A68: 信息化建设 | B68: 203 | C68: 223 | D68: 1.10
A69: 财政委托业务支出 | B69: 72 | C69: 79 | D69: 1.10
A70: 事业运行 | B70: 0 | C70: 0 | D70: =C70/B70 -> 
A71: 其他财政事务支出 | B71: 264 | C71: 290 | D71: 1.10
A72: 税收事务 | B72: =SUM(B73:B79) -> 1830 | C72: =SUM(C73:C79) -> 2013 | D72: 1.10
A73: 行政运行 | B73: 0 | C73: 0
A74: 一般行政管理事务 | B74: 0 | C74: 0
A75: 机关服务 | B75: 0 | C75: 0
A76: 信息化建设 | B76: 0 | C76: 0
A77: 税收业务 | B77: 0 | C77: 0
A78: 事业运行 | B78: 0 | C78: 0
A79: 其他税收事务支出 | B79: 1830 | C79: 2013 | D79: 1.10
A80: 审计事务 | B80: =SUM(B81:B88) -> 393 | C80: =SUM(C81:C88) -> 433 | D80: 1.10
A81: 行政运行 | B81: 245 | C81: 270 | D81: 1.10
A82: 一般行政管理事务 | B82: 0 | C82: 0
A83: 机关服务 | B83: 0 | C83: 0
A84: 审计业务 | B84: 126 | C84: 139 | D84: 1.10
A85: 审计管理 | B85: 0 | C85: 0
A86: 信息化建设 | B86: 0 | C86: 0
A87: 事业运行 | B87: 22 | C87: 24 | D87: 1.09
A88: 其他审计事务支出 | B88: 0 | C88: 0
A89: 海关事务 | B89: =SUM(B90:B101) -> 0 | C89: =SUM(C90:C101) -> 0
A90: 行政运行 | B90: 0 | C90: 0
A91: 一般行政管理事务 | B91: 0 | C91: 0
A92: 机关服务 | B92: 0 | C92: 0
A93: 缉私办案 | B93: 0 | C93: 0
A94: 口岸管理 | B94: 0 | C94: 0
A95: 信息化建设 | B95: 0 | C95: 0
A96: 海关关务 | B96: 0 | C96: 0
A97: 关税征管 | B97: 0 | C97: 0
A98: 海关监管 | B98: 0 | C98: 0
A99: 检验检疫 | B99: 0 | C99: 0
A100: 事业运行 | B100: 0 | C100: 0
A101: 其他海关事务支出 | B101: 0 | C101: 0
A102: 纪检监察事务 | B102: =SUM(B103:B110) -> 1052 | C102: =SUM(C103:C110) -> 1157 | D102: 1.10
A103: 行政运行 | B103: 1038 | C103: 1142 | D103: 1.10
A104: 一般行政管理事务 | B104: 0 | C104: 0
A105: 机关服务 | B105: 0 | C105: 0
A106: 大案要案查处 | B106: 0 | C106: 0
A107: 派驻派出机构 | B107: 0 | C107: 0
A108: 巡视工作 | B108: 0 | C108: 0
A109: 事业运行 | B109: 0 | C109: 0
A110: 其他纪检监察事务支出 | B110: 14 | C110: 15 | D110: 1.07
A111: 商贸事务 | B111: =SUM(B112:B121) -> 1126 | C111: =SUM(C112:C121) -> 1240 | D111: 1.10
A112: 行政运行 | B112: 325 | C112: 358 | D112: 1.10
A113: 一般行政管理事务 | B113: 15 | C113: 17 | D113: 1.13
A114: 机关服务 | B114: 0 | C114: 0
A115: 对外贸易管理 | B115: 0 | C115: 0
A116: 国际经济合作 | B116: 0 | C116: 0
A117: 外资管理 | B117: 0 | C117: 0
A118: 国内贸易管理 | B118: 0 | C118: 0
A119: 招商引资 | B119: 216 | C119: 238 | D119: 1.10
A120: 事业运行 | B120: 32 | C120: 35 | D120: 1.09
A121: 其他商贸事务支出 | B121: 538 | C121: 592 | D121: 1.10
A122: 知识产权事务 | B122: =SUM(B123:B133) -> 0 | C122: =SUM(C123:C133) -> 0
A123: 行政运行 | B123: 0 | C123: 0
A124: 一般行政管理事务 | B124: 0 | C124: 0
A125: 机关服务 | B125: 0 | C125: 0
A126: 专利审批 | B126: 0 | C126: 0
A127: 知识产权战略和规划 | B127: 0 | C127: 0
A128: 国际合作与交流 | B128: 0 | C128: 0
A129: 知识产权宏观管理 | B129: 0 | C129: 0
A130: 商标管理 | B130: 0 | C130: 0
A131: 原产地地理标志管理 | B131: 0 | C131: 0
A132: 事业运行 | B132: 0 | C132: 0
A133: 其他知识产权事务支出 | B133: 0 | C133: 0
A134: 民族事务 | B134: =SUM(B135:B140) -> 0 | C134: =SUM(C135:C140) -> 0 | D134: =C134/B134 -> 
A135: 行政运行 | B135: 0 | C135: 0
A136: 一般行政管理事务 | B136: 0 | C136: 0
A137: 机关服务 | B137: 0 | C137: 0
A138: 民族工作专项 | B138: 0 | C138: 0
A139: 事业运行 | B139: 0 | C139: 0
A140: 其他民族事务支出 | B140: 0 | C140: 0
A141: 港澳台事务 | B141: =SUM(B142:B148) -> 0 | C141: =SUM(C142:C148) -> 0
A142: 行政运行 | B142: 0 | C142: 0
A143: 一般行政管理事务 | B143: 0 | C143: 0
A144: 机关服务 | B144: 0 | C144: 0
A145: 港澳事务 | B145: 0 | C145: 0
A146: 台湾事务 | B146: 0 | C146: 0
A147: 事业运行 | B147: 0 | C147: 0
A148: 其他港澳台事务支出 | B148: 0 | C148: 0
A149: 档案事务 | B149: =SUM(B150:B154) -> 135 | C149: =SUM(C150:C154) -> 148 | D149: 1.10
A150: 行政运行 | B150: 110 | C150: 121 | D150: 1.10
A151: 一般行政管理事务 | B151: 0 | C151: 0
A152: 机关服务 | B152: 11 | C152: 12 | D152: 1.09
A153: 档案馆 | B153: 11 | C153: 12 | D153: 1.09
A154: 其他档案事务支出 | B154: 3 | C154: 3 | D154: 1.00
A155: 民主党派及工商联事务 | B155: =SUM(B156:B161) -> 15 | C155: =SUM(C156:C161) -> 17 | D155: 1.13
A156: 行政运行 | B156: 15 | C156: 17 | D156: 1.13
A157: 一般行政管理事务 | B157: 0 | C157: 0
A158: 机关服务 | B158: 0 | C158: 0
A159: 参政议政 | B159: 0 | C159: 0
A160: 事业运行 | B160: 0 | C160: 0
A161: 其他民主党派及工商联事务支出 | B161: 0 | C161: 0
A162: 群众团体事务 | B162: =SUM(B163:B168) -> 251 | C162: =SUM(C163:C168) -> 276 | D162: 1.10
A163: 行政运行 | B163: 142 | C163: 156 | D163: 1.10
A164: 一般行政管理事务 | B164: 3 | C164: 3 | D164: 1.00
A165: 机关服务 | B165: 35 | C165: 39 | D165: 1.11
A166: 工会事务 | B166: 53 | C166: 58 | D166: 1.09
A167: 事业运行 | B167: 0 | C167: 0
A168: 其他群众团体事务支出 | B168: 18 | C168: 20 | D168: 1.11
A169: 党委办公厅(室)及相关机构事务 | B169: =SUM(B170:B175) -> 674 | C169: =SUM(C170:C175) -> 742 | D169: 1.10
A170: 行政运行 | B170: 468 | C170: 515 | D170: 1.10
A171: 一般行政管理事务 | B171: 0 | C171: 0
A172: 机关服务 | B172: 0 | C172: 0
A173: 专项业务 | B173: 0 | C173: 0
A174: 事业运行 | B174: 57 | C174: 63 | D174: 1.11
A175: 其他党委办公厅(室)及相关机构事务支出 | B175: 149 | C175: 164 | D175: 1.10
A176: 组织事务 | B176: =SUM(B177:B182) -> 435 | C176: =SUM(C177:C182) -> 479 | D176: 1.10
A177: 行政运行 | B177: 427 | C177: 470 | D177: 1.10
A178: 一般行政管理事务 | B178: 0 | C178: 0
A179: 机关服务 | B179: 0 | C179: 0
A180: 公务员事务 | B180: 0 | C180: 0
A181: 事业运行 | B181: 0 | C181: 0
A182: 其他组织事务支出 | B182: 8 | C182: 9 | D182: 1.13
A183: 宣传事务 | B183: =SUM(B184:B189) -> 370 | C183: =SUM(C184:C189) -> 407 | D183: 1.10
A184: 行政运行 | B184: 241 | C184: 265 | D184: 1.10
A185: 一般行政管理事务 | B185: 3 | C185: 3 | D185: 1.00
A186: 机关服务 | B186: 0 | C186: 0
A187: 宣传管理 | B187: 0 | C187: 0
A188: 事业运行 | B188: 0 | C188: 0
A189: 其他宣传事务支出 | B189: 126 | C189: 139 | D189: 1.10
A190: 统战事务 | B190: =SUM(B191:B197) -> 246 | C190: =SUM(C191:C197) -> 271 | D190: 1.10
A191: 行政运行 | B191: 218 | C191: 240 | D191: 1.10
A192: 一般行政管理事务 | B192: 0 | C192: 0
A193: 机关服务 | B193: 0 | C193: 0
A194: 宗教事务 | B194: 12 | C194: 13 | D194: 1.08
A195: 华侨事务 | B195: 0 | C195: 0
A196: 事业运行 | B196: 0 | C196: 0
A197: 其他统战事务支出 | B197: 16 | C197: 18 | D197: 1.13
A198: 对外联络事务 | B198: =SUM(B199:B203) -> 0 | C198: =SUM(C199:C203) -> 0 | D198: =C198/B198 -> 
A199: 行政运行 | B199: 0 | C199: 0
A200: 一般行政管理事务 | B200: 0 | C200: 0
... 1113 more rows

Sheet 表3一般公共预算本级支出表
A1: 表3
A2: 2022年一般公共预算本级支出表
A3: （因我区镇办作为预算单位管理，本级支出与支出数一致）
D4: 单位：万元
A5: 项目 | B5: 上年决算数 | C5: 预算数 | D5: 预算数为决算数%
A6: 一般公共预算支出合计 | B6: =B7+B236+B276+B295+B385+B437+B493+B550+B677+B750+B827+B850+B957+B1015+B1079+B1099+B1129+B1139+B1184+B1204+B1248+B1297+B1300 -> 189211 | C6: =C7+C236+C276+C295+C385+C437+C493+C550+C677+C750+C827+C850+C957+C1015+C1079+C1099+C1129+C1139+C1184+C1204+C1248+C1297+C1300 -> 208300 | D6: =C6/B6 -> 1.10
A7: 一般公共服务支出 | B7: =SUM(B8+B20+B29+B40+B51+B62+B73+B81+B90+B103+B112+B123+B135+B142+B150+B156+B163+B170+B177+B184+B191+B199+B205+B211+B218+B233) -> 28130 | C7: =SUM(C8+C20+C29+C40+C51+C62+C73+C81+C90+C103+C112+C123+C135+C142+C150+C156+C163+C170+C177+C184+C191+C199+C205+C211+C218+C233) -> 30947 | D7: =C7/B7 -> 1.10
A8: 人大事务 | B8: =SUM(B9:B19) -> 814 | C8: =SUM(C9:C19) -> 896 | D8: 1.10
A9: 行政运行 | B9: 601 | C9: 661 | D9: 1.10
A10: 一般行政管理事务 | B10: 19 | C10: 21 | D10: 1.11
A11: 机关服务 | B11: 0 | C11: 0
A12: 人大会议 | B12: 125 | C12: 138 | D12: 1.10
A13: 人大立法 | B13: 0 | C13: 0
A14: 人大监督 | B14: 0 | C14: 0
A15: 人大代表履职能力提升 | B15: 0 | C15: 0
A16: 代表工作 | B16: 0 | C16: 0
A17: 人大信访工作 | B17: 0 | C17: 0
A18: 事业运行 | B18: 0 | C18: 0
A19: 其他人大事务支出 | B19: 69 | C19: 76 | D19: 1.10
A20: 政协事务 | B20: =SUM(B21:B28) -> 547 | C20: =SUM(C21:C28) -> 602 | D20: 1.10
A21: 行政运行 | B21: 426 | C21: 469 | D21: 1.10
A22: 一般行政管理事务 | B22: 0 | C22: 0
A23: 机关服务 | B23: 0 | C23: 0
A24: 政协会议 | B24: 92 | C24: 101 | D24: 1.10
A25: 委员视察 | B25: 0 | C25: 0
A26: 参政议政 | B26: 0 | C26: 0
A27: 事业运行 | B27: 0 | C27: 0
A28: 其他政协事务支出 | B28: 29 | C28: 32 | D28: 1.10
A29: 政府办公厅(室)及相关机构事务 | B29: =SUM(B30:B39) -> 6038 | C29: =SUM(C30:C39) -> 6643 | D29: 1.10
A30: 行政运行 | B30: 1026 | C30: 1129 | D30: 1.10
A31: 一般行政管理事务 | B31: 0 | C31: 0
A32: 机关服务 | B32: 1211 | C32: 1332 | D32: 1.10
A33: 专项服务 | B33: 0 | C33: 0
A34: 专项业务及机关事务管理 | B34: 0 | C34: 0
A35: 政务公开审批 | B35: 2731 | C35: 3004 | D35: 1.10
A36: 信访事务 | B36: 335 | C36: 369 | D36: 1.10
A37: 参事事务 | B37: 0 | C37: 0
A38: 事业运行 | B38: 35 | C38: 39 | D38: 1.11
A39: 其他政府办公厅(室)及相关机构事务支出 | B39: 700 | C39: 770 | D39: 1.10
A40: 发展与改革事务 | B40: =SUM(B41:B50) -> 1226 | C40: =SUM(C41:C50) -> 1349 | D40: 1.10
A41: 行政运行 | B41: 184 | C41: 202 | D41: 1.10
A42: 一般行政管理事务 | B42: 79 | C42: 87 | D42: 1.10
A43: 机关服务 | B43: 0 | C43: 0
A44: 战略规划与实施 | B44: 0 | C44: 0
A45: 日常经济运行调节 | B45: 0 | C45: 0
A46: 社会事业发展规划 | B46: 0 | C46: 0
A47: 经济体制改革研究 | B47: 0 | C47: 0
A48: 物价管理 | B48: 25 | C48: 28 | D48: 1.12
A49: 事业运行 | B49: 0 | C49: 0
A50: 其他发展与改革事务支出 | B50: 938 | C50: 1032 | D50: 1.10
A51: 统计信息事务 | B51: =SUM(B52:B61) -> 373 | C51: =SUM(C52:C61) -> 410 | D51: 1.10
A52: 行政运行 | B52: 149 | C52: 164 | D52: 1.10
A53: 一般行政管理事务 | B53: 3 | C53: 3 | D53: 1.00
A54: 机关服务 | B54: 0 | C54: 0
A55: 信息事务 | B55: 0 | C55: 0
A56: 专项统计业务 | B56: 0 | C56: 0
A57: 统计管理 | B57: 0 | C57: 0
A58: 专项普查活动 | B58: 0 | C58: 0
A59: 统计抽样调查 | B59: 0 | C59: 0
A60: 事业运行 | B60: 0 | C60: 0
A61: 其他统计信息事务支出 | B61: 221 | C61: 243 | D61: 1.10
A62: 财政事务 | B62: =SUM(B63:B72) -> 1674 | C62: =SUM(C63:C72) -> 1841 | D62: 1.10
A63: 行政运行 | B63: 659 | C63: 725 | D63: 1.10
A64: 一般行政管理事务 | B64: 379 | C64: 417 | D64: 1.10
A65: 机关服务 | B65: 0 | C65: 0
A66: 预算改革业务 | B66: 0 | C66: 0
A67: 财政国库业务 | B67: 97 | C67: 107 | D67: 1.10
A68: 财政监察 | B68: 0 | C68: 0
A69: 信息化建设 | B69: 203 | C69: 223 | D69: 1.10
A70: 财政委托业务支出 | B70: 72 | C70: 79 | D70: 1.10
A71: 事业运行 | B71: 0 | C71: 0 | D71: =C71/B71 -> 
A72: 其他财政事务支出 | B72: 264 | C72: 290 | D72: 1.10
A73: 税收事务 | B73: =SUM(B74:B80) -> 1830 | C73: =SUM(C74:C80) -> 2013 | D73: 1.10
A74: 行政运行 | B74: 0 | C74: 0
A75: 一般行政管理事务 | B75: 0 | C75: 0
A76: 机关服务 | B76: 0 | C76: 0
A77: 信息化建设 | B77: 0 | C77: 0
A78: 税收业务 | B78: 0 | C78: 0
A79: 事业运行 | B79: 0 | C79: 0
A80: 其他税收事务支出 | B80: 1830 | C80: 2013 | D80: 1.10
A81: 审计事务 | B81: =SUM(B82:B89) -> 393 | C81: =SUM(C82:C89) -> 433 | D81: 1.10
A82: 行政运行 | B82: 245 | C82: 270 | D82: 1.10
A83: 一般行政管理事务 | B83: 0 | C83: 0
A84: 机关服务 | B84: 0 | C84: 0
A85: 审计业务 | B85: 126 | C85: 139 | D85: 1.10
A86: 审计管理 | B86: 0 | C86: 0
A87: 信息化建设 | B87: 0 | C87: 0
A88: 事业运行 | B88: 22 | C88: 24 | D88: 1.09
A89: 其他审计事务支出 | B89: 0 | C89: 0
A90: 海关事务 | B90: =SUM(B91:B102) -> 0 | C90: =SUM(C91:C102) -> 0
A91: 行政运行 | B91: 0 | C91: 0
A92: 一般行政管理事务 | B92: 0 | C92: 0
A93: 机关服务 | B93: 0 | C93: 0
A94: 缉私办案 | B94: 0 | C94: 0
A95: 口岸管理 | B95: 0 | C95: 0
A96: 信息化建设 | B96: 0 | C96: 0
A97: 海关关务 | B97: 0 | C97: 0
A98: 关税征管 | B98: 0 | C98: 0
A99: 海关监管 | B99: 0 | C99: 0
A100: 检验检疫 | B100: 0 | C100: 0
A101: 事业运行 | B101: 0 | C101: 0
A102: 其他海关事务支出 | B102: 0 | C102: 0
A103: 纪检监察事务 | B103: =SUM(B104:B111) -> 1052 | C103: =SUM(C104:C111) -> 1157 | D103: 1.10
A104: 行政运行 | B104: 1038 | C104: 1142 | D104: 1.10
A105: 一般行政管理事务 | B105: 0 | C105: 0
A106: 机关服务 | B106: 0 | C106: 0
A107: 大案要案查处 | B107: 0 | C107: 0
A108: 派驻派出机构 | B108: 0 | C108: 0
A109: 巡视工作 | B109: 0 | C109: 0
A110: 事业运行 | B110: 0 | C110: 0
A111: 其他纪检监察事务支出 | B111: 14 | C111: 15 | D111: 1.07
A112: 商贸事务 | B112: =SUM(B113:B122) -> 1126 | C112: =SUM(C113:C122) -> 1240 | D112: 1.10
A113: 行政运行 | B113: 325 | C113: 358 | D113: 1.10
A114: 一般行政管理事务 | B114: 15 | C114: 17 | D114: 1.13
A115: 机关服务 | B115: 0 | C115: 0
A116: 对外贸易管理 | B116: 0 | C116: 0
A117: 国际经济合作 | B117: 0 | C117: 0
A118: 外资管理 | B118: 0 | C118: 0
A119: 国内贸易管理 | B119: 0 | C119: 0
A120: 招商引资 | B120: 216 | C120: 238 | D120: 1.10
A121: 事业运行 | B121: 32 | C121: 35 | D121: 1.09
A122: 其他商贸事务支出 | B122: 538 | C122: 592 | D122: 1.10
A123: 知识产权事务 | B123: =SUM(B124:B134) -> 0 | C123: =SUM(C124:C134) -> 0
A124: 行政运行 | B124: 0 | C124: 0
A125: 一般行政管理事务 | B125: 0 | C125: 0
A126: 机关服务 | B126: 0 | C126: 0
A127: 专利审批 | B127: 0 | C127: 0
A128: 知识产权战略和规划 | B128: 0 | C128: 0
A129: 国际合作与交流 | B129: 0 | C129: 0
A130: 知识产权宏观管理 | B130: 0 | C130: 0
A131: 商标管理 | B131: 0 | C131: 0
A132: 原产地地理标志管理 | B132: 0 | C132: 0
A133: 事业运行 | B133: 0 | C133: 0
A134: 其他知识产权事务支出 | B134: 0 | C134: 0
A135: 民族事务 | B135: =SUM(B136:B141) -> 0 | C135: =SUM(C136:C141) -> 0 | D135: =C135/B135 -> 
A136: 行政运行 | B136: 0 | C136: 0
A137: 一般行政管理事务 | B137: 0 | C137: 0
A138: 机关服务 | B138: 0 | C138: 0
A139: 民族工作专项 | B139: 0 | C139: 0
A140: 事业运行 | B140: 0 | C140: 0
A141: 其他民族事务支出 | B141: 0 | C141: 0
A142: 港澳台事务 | B142: =SUM(B143:B149) -> 0 | C142: =SUM(C143:C149) -> 0
A143: 行政运行 | B143: 0 | C143: 0
A144: 一般行政管理事务 | B144: 0 | C144: 0
A145: 机关服务 | B145: 0 | C145: 0
A146: 港澳事务 | B146: 0 | C146: 0
A147: 台湾事务 | B147: 0 | C147: 0
A148: 事业运行 | B148: 0 | C148: 0
A149: 其他港澳台事务支出 | B149: 0 | C149: 0
A150: 档案事务 | B150: =SUM(B151:B155) -> 135 | C150: =SUM(C151:C155) -> 148 | D150: 1.10
A151: 行政运行 | B151: 110 | C151: 121 | D151: 1.10
A152: 一般行政管理事务 | B152: 0 | C152: 0
A153: 机关服务 | B153: 11 | C153: 12 | D153: 1.09
A154: 档案馆 | B154: 11 | C154: 12 | D154: 1.09
A155: 其他档案事务支出 | B155: 3 | C155: 3 | D155: 1.00
A156: 民主党派及工商联事务 | B156: =SUM(B157:B162) -> 15 | C156: =SUM(C157:C162) -> 17 | D156: 1.13
A157: 行政运行 | B157: 15 | C157: 17 | D157: 1.13
A158: 一般行政管理事务 | B158: 0 | C158: 0
A159: 机关服务 | B159: 0 | C159: 0
A160: 参政议政 | B160: 0 | C160: 0
A161: 事业运行 | B161: 0 | C161: 0
A162: 其他民主党派及工商联事务支出 | B162: 0 | C162: 0
A163: 群众团体事务 | B163: =SUM(B164:B169) -> 251 | C163: =SUM(C164:C169) -> 276 | D163: 1.10
A164: 行政运行 | B164: 142 | C164: 156 | D164: 1.10
A165: 一般行政管理事务 | B165: 3 | C165: 3 | D165: 1.00
A166: 机关服务 | B166: 35 | C166: 39 | D166: 1.11
A167: 工会事务 | B167: 53 | C167: 58 | D167: 1.09
A168: 事业运行 | B168: 0 | C168: 0
A169: 其他群众团体事务支出 | B169: 18 | C169: 20 | D169: 1.11
A170: 党委办公厅(室)及相关机构事务 | B170: =SUM(B171:B176) -> 674 | C170: =SUM(C171:C176) -> 742 | D170: 1.10
A171: 行政运行 | B171: 468 | C171: 515 | D171: 1.10
A172: 一般行政管理事务 | B172: 0 | C172: 0
A173: 机关服务 | B173: 0 | C173: 0
A174: 专项业务 | B174: 0 | C174: 0
A175: 事业运行 | B175: 57 | C175: 63 | D175: 1.11
A176: 其他党委办公厅(室)及相关机构事务支出 | B176: 149 | C176: 164 | D176: 1.10
A177: 组织事务 | B177: =SUM(B178:B183) -> 435 | C177: =SUM(C178:C183) -> 479 | D177: 1.10
A178: 行政运行 | B178: 427 | C178: 470 | D178: 1.10
A179: 一般行政管理事务 | B179: 0 | C179: 0
A180: 机关服务 | B180: 0 | C180: 0
A181: 公务员事务 | B181: 0 | C181: 0
A182: 事业运行 | B182: 0 | C182: 0
A183: 其他组织事务支出 | B183: 8 | C183: 9 | D183: 1.13
A184: 宣传事务 | B184: =SUM(B185:B190) -> 370 | C184: =SUM(C185:C190) -> 407 | D184: 1.10
A185: 行政运行 | B185: 241 | C185: 265 | D185: 1.10
A186: 一般行政管理事务 | B186: 3 | C186: 3 | D186: 1.00
A187: 机关服务 | B187: 0 | C187: 0
A188: 宣传管理 | B188: 0 | C188: 0
A189: 事业运行 | B189: 0 | C189: 0
A190: 其他宣传事务支出 | B190: 126 | C190: 139 | D190: 1.10
A191: 统战事务 | B191: =SUM(B192:B198) -> 246 | C191: =SUM(C192:C198) -> 271 | D191: 1.10
A192: 行政运行 | B192: 218 | C192: 240 | D192: 1.10
A193: 一般行政管理事务 | B193: 0 | C193: 0
A194: 机关服务 | B194: 0 | C194: 0
A195: 宗教事务 | B195: 12 | C195: 13 | D195: 1.08
A196: 华侨事务 | B196: 0 | C196: 0
A197: 事业运行 | B197: 0 | C197: 0
A198: 其他统战事务支出 | B198: 16 | C198: 18 | D198: 1.13
A199: 对外联络事务 | B199: =SUM(B200:B204) -> 0 | C199: =SUM(C200:C204) -> 0 | D199: =C199/B199 -> 
A200: 行政运行 | B200: 0 | C200: 0
... 1114 more rows

Sheet 表4.一般公共预算本级财力基本支出表
A1: 表4
A2: 2022年一般公共预算本级财力基本支出表
B3: 单位：万元
A4: 项目 | B4: 预算数
A5: 一、一般公共服务 | B5: 10049
A6: 二、外交支出
A7: 三、国防支出
A8: 四、公共安全支出 | B8: 290
A9: 五、教育支出 | B9: 12908
A10: 六、科学技术支出 | B10: 258
A11: 七、文化旅游体育与传媒支出 | B11: 638
A12: 八、社会保障和就业支出 | B12: 14194
A13: 九、卫生健康支出 | B13: 6153
A14: 十、节能环保支出 | B14: 15
A15: 十一、城乡社区支出 | B15: 1252
A16: 十二、农林水支出 | B16: 3254
A17: 十三、交通运输支出 | B17: 2178
A18: 十四、资源勘探信息等支出 | B18: 163
A19: 十五、商业服务业等支出 | B19: 171
A20: 十六、金融支出
A21: 十七、援助其他地区支出
A22: 十八、自然资源海洋气象等支出 | B22: 481
A23: 十九、住房保障支出 | B23: 2704
A24: 二十、粮油物资储备支出
A25: 二十一、灾害防治及应急管理支出 | B25: 233
A26: 二十二、预备费
A27: 二十三、债务付息支出
A28: 二十四、债务发行费用支出
A29: 二十五、其他支出 | B29: 4
A30: 合 计 | B30: =SUM(B5:B29) -> 54945

Sheet 表5一般公共预算收支平衡表
A1: 表5
A2: 2022年一般公共预算收支平衡表
B3: 单位：万元
A4: 收入 | C4: 支出
A5: 项目 | B5: 预算数 | C5: 项目 | D5: 预算数
A6: 本级收入合计 | B6: 38500 | C6: 本级支出合计 | D6: 208300
A7: 转移性收入 | B7: =B8 -> 134521 | C7: 转移性支出 | D7: =D8 -> 4052
A8: 上级补助收入 | B8: =B9+B16+B52 -> 134521 | C8: 上解支出 | D8: =D9+D10 -> 4052
A9: 返还性收入 | B9: =SUM(B10:B15) -> 3765 | C9: 体制上解支出
A10: 所得税基数返还收入 | B10: 187 | C10: 专项上解支出 | D10: 4052
A11: 成品油税费改革税收返还收入 | B11: 304
A12: 增值税税收返还收入 | B12: 2,840
A13: 消费税税收返还收入
A14: 增值税“五五分享”税收返还收入
A15: 其他返还性收入 | B15: 434
A16: 一般性转移支付收入 | B16: =SUM(B17:B51) -> 80756
A17: 体制补助收入
A18: 均衡性转移支付收入 | B18: 17914
A19: 县级基本财力保障机制奖补资金收入 | B19: 5,027
A20: 结算补助收入 | B20: 1,184
A21: 资源枯竭型城市转移支付补助收入
A22: 企业事业单位划转补助收入
A23: 产粮（油）大县奖励资金收入
A24: 重点生态功能区转移支付收入 | B24: 2120
A25: 固定数额补助收入 | B25: 10761
A26: 革命老区转移支付收入 | B26: 160
A27: 民族地区转移支付收入
A28: 边境地区转移支付收入
A29: 贫困地区转移支付收入 | B29: 1900
A30: 一般公共服务共同财政事权转移支付收入
A31: 外交共同财政事权转移支付收入
A32: 国防共同财政事权转移支付收入
A33: 公共安全共同财政事权转移支付收入 | B33: 160
A34: 教育共同财政事权转移支付收入 | B34: 4,500
A35: 科学技术共同财政事权转移支付收入
A36: 文化旅游体育与传媒共同财政事权转移支付收入 | B36: 170
A37: 社会保障和就业共同财政事权转移支付收入 | B37: 6,600
A38: 医疗卫生共同财政事权转移支付收入 | B38: 3,500
A39: 节能环保共同财政事权转移支付收入
A40: 城乡社区共同财政事权转移支付收入
A41: 农林水共同财政事权转移支付收入 | B41: 15000
A42: 交通运输共同财政事权转移支付收入 | B42: 3500
A43: 资源勘探工业信息等共同财政事权转移支付收入
A44: 商业服务业等共同财政事权转移支付收入
A45: 金融共同财政事权转移支付收入
A46: 自然资源海洋气象等共同财政事权转移支付收入
A47: 住房保障共同财政事权转移支付收入 | B47: 3000
A48: 粮油物资储备共同财政事权转移支付收入 | B48: 60
A49: 灾害防治及应急管理共同财政事权转移支付收入
A50: 其他共同财政事权转移支付收入 | B50: 500
A51: 其他一般性转移支付收入 | B51: 4,700
A52: 专项转移支付收入 | B52: =SUM(B53:B73) -> 50000
A53: 一般公共服务 | B53: 1,394
A54: 外交 | B54: 0
A55: 国防 | B55: 4
A56: 公共安全 | B56: 192
A57: 教育 | B57: 440
A58: 科学技术 | B58: 424
A59: 文化旅游体育与传媒 | B59: 101
A60: 社会保障和就业 | B60: 4,909
A61: 卫生健康 | B61: 1,550
A62: 节能环保 | B62: 4,298
A63: 城乡社区 | B63: 451
A64: 农林水 | B64: 32,406
A65: 交通运输 | B65: 395
A66: 资源勘探工业信息等 | B66: 417
A67: 商业服务业等 | B67: 315
A68: 金融 | B68: 118
A69: 自然资源海洋气象等 | B69: 5
A70: 住房保障 | B70: 2,436
A71: 粮油物资储备 | B71: 21
A72: 灾害防治及应急管理 | B72: 110
A73: 其他收入 | B73: 14
A76: 上年结余收入 | B76: 29984
A77: 调入资金 | B77: =SUM(B78:B80) -> 38320 | C77: 调出资金
A78: 从政府性基金预算调入 | B78: 38320 | C78: 年终结余 | D78: 28973
A79: 从国有资本经营预算调入 | C79: 地方政府一般债务还本支出 | D79: 44462
A80: 从其他资金调入 | C80: 地方政府一般债务转贷支出
A81: 地方政府一般债务收入 | C81: 援助其他地区支出
A82: 地方政府一般债务转贷收入 | B82: 44462 | C82: 安排预算稳定调节基金
A83: 接受其他地区援助收入 | C83: 补充预算周转金
A84: 动用预算稳定调节基金
A90: 收入总计 | B90: =B6+B7+B76+B77+B81+B82+B83+B84 -> 285787 | C90: 支出总计 | D90: =B90 -> 285787

Sheet 表6一般公共预算支出明细表(功能科目）
A1: 表6
A2: 2022年一般公共预算支出预算明细表
C3: 单位：万元
A4: 科目编码 | B4: 科目名称 | C4: 预算数
B5: 一般公共预算支出合计 | C5: =C6+C235+C275+C294+C384+C436+C492+C549+C676+C749+C826+C849+C956+C1014+C1078+C1098+C1128+C1138+C1183+C1203+C1247+C1296+C1299 -> 208,300
A6: 201 | B6: 一般公共服务支出 | C6: =SUM(C7+C19+C28+C39+C50+C61+C72+C80+C89+C102+C111+C122+C134+C141+C149+C155+C162+C169+C176+C183+C190+C198+C204+C210+C217+C232) -> 30947
A7: 20101 | B7: 人大事务 | C7: =SUM(C8:C18) -> 896
A8: 2010101 | B8: 行政运行 | C8: 661
A9: 2010102 | B9: 一般行政管理事务 | C9: 21
A10: 2010103 | B10: 机关服务 | C10: 0
A11: 2010104 | B11: 人大会议 | C11: 138
A12: 2010105 | B12: 人大立法 | C12: 0
A13: 2010106 | B13: 人大监督 | C13: 0
A14: 2010107 | B14: 人大代表履职能力提升 | C14: 0
A15: 2010108 | B15: 代表工作 | C15: 0
A16: 2010109 | B16: 人大信访工作 | C16: 0
A17: 2010150 | B17: 事业运行 | C17: 0
A18: 2010199 | B18: 其他人大事务支出 | C18: 76
A19: 20102 | B19: 政协事务 | C19: =SUM(C20:C27) -> 602
A20: 2010201 | B20: 行政运行 | C20: 469
A21: 2010202 | B21: 一般行政管理事务 | C21: 0
A22: 2010203 | B22: 机关服务 | C22: 0
A23: 2010204 | B23: 政协会议 | C23: 101
A24: 2010205 | B24: 委员视察 | C24: 0
A25: 2010206 | B25: 参政议政 | C25: 0
A26: 2010250 | B26: 事业运行 | C26: 0
A27: 2010299 | B27: 其他政协事务支出 | C27: 32
A28: 20103 | B28: 政府办公厅(室)及相关机构事务 | C28: =SUM(C29:C38) -> 6,643
A29: 2010301 | B29: 行政运行 | C29: 1,129
A30: 2010302 | B30: 一般行政管理事务 | C30: 0
A31: 2010303 | B31: 机关服务 | C31: 1,332
A32: 2010304 | B32: 专项服务 | C32: 0
A33: 2010305 | B33: 专项业务及机关事务管理 | C33: 0
A34: 2010306 | B34: 政务公开审批 | C34: 3,004
A35: 2010308 | B35: 信访事务 | C35: 369
A36: 2010309 | B36: 参事事务 | C36: 0
A37: 2010350 | B37: 事业运行 | C37: 39
A38: 2010399 | B38: 其他政府办公厅(室)及相关机构事务支出 | C38: 770
A39: 20104 | B39: 发展与改革事务 | C39: =SUM(C40:C49) -> 1,349
A40: 2010401 | B40: 行政运行 | C40: 202
A41: 2010402 | B41: 一般行政管理事务 | C41: 87
A42: 2010403 | B42: 机关服务 | C42: 0
A43: 2010404 | B43: 战略规划与实施 | C43: 0
A44: 2010405 | B44: 日常经济运行调节 | C44: 0
A45: 2010406 | B45: 社会事业发展规划 | C45: 0
A46: 2010407 | B46: 经济体制改革研究 | C46: 0
A47: 2010408 | B47: 物价管理 | C47: 28
A48: 2010450 | B48: 事业运行 | C48: 0
A49: 2010499 | B49: 其他发展与改革事务支出 | C49: 1032
A50: 20105 | B50: 统计信息事务 | C50: =SUM(C51:C60) -> 410
A51: 2010501 | B51: 行政运行 | C51: 164
A52: 2010502 | B52: 一般行政管理事务 | C52: 3
A53: 2010503 | B53: 机关服务 | C53: 0
A54: 2010504 | B54: 信息事务 | C54: 0
A55: 2010505 | B55: 专项统计业务 | C55: 0
A56: 2010506 | B56: 统计管理 | C56: 0
A57: 2010507 | B57: 专项普查活动 | C57: 0
A58: 2010508 | B58: 统计抽样调查 | C58: 0
A59: 2010550 | B59: 事业运行 | C59: 0
A60: 2010599 | B60: 其他统计信息事务支出 | C60: 243
A61: 20106 | B61: 财政事务 | C61: =SUM(C62:C71) -> 1,841
A62: 2010601 | B62: 行政运行 | C62: 725
A63: 2010602 | B63: 一般行政管理事务 | C63: 417
A64: 2010603 | B64: 机关服务 | C64: 0
A65: 2010604 | B65: 预算改革业务 | C65: 0
A66: 2010605 | B66: 财政国库业务 | C66: 107
A67: 2010606 | B67: 财政监察 | C67: 0
A68: 2010607 | B68: 信息化建设 | C68: 223
A69: 2010608 | B69: 财政委托业务支出 | C69: 79
A70: 2010650 | B70: 事业运行 | C70: 0
A71: 2010699 | B71: 其他财政事务支出 | C71: 290
A72: 20107 | B72: 税收事务 | C72: =SUM(C73:C79) -> 2013
A73: 2010701 | B73: 行政运行 | C73: 0
A74: 2010702 | B74: 一般行政管理事务 | C74: 0
A75: 2010703 | B75: 机关服务 | C75: 0
A76: 2010709 | B76: 信息化建设 | C76: 0
A77: 2010710 | B77: 税收业务 | C77: 0
A78: 2010750 | B78: 事业运行 | C78: 0
A79: 2010799 | B79: 其他税收事务支出 | C79: 2013
A80: 20108 | B80: 审计事务 | C80: =SUM(C81:C88) -> 433
A81: 2010801 | B81: 行政运行 | C81: 270
A82: 2010802 | B82: 一般行政管理事务 | C82: 0
A83: 2010803 | B83: 机关服务 | C83: 0
A84: 2010804 | B84: 审计业务 | C84: 139
A85: 2010805 | B85: 审计管理 | C85: 0
A86: 2010806 | B86: 信息化建设 | C86: 0
A87: 2010850 | B87: 事业运行 | C87: 24
A88: 2010899 | B88: 其他审计事务支出 | C88: 0
A89: 20109 | B89: 海关事务 | C89: =SUM(C90:C101) -> 0
A90: 2010901 | B90: 行政运行 | C90: 0
A91: 2010902 | B91: 一般行政管理事务 | C91: 0
A92: 2010903 | B92: 机关服务 | C92: 0
A93: 2010905 | B93: 缉私办案 | C93: 0
A94: 2010907 | B94: 口岸管理 | C94: 0
A95: 2010908 | B95: 信息化建设 | C95: 0
A96: 2010909 | B96: 海关关务 | C96: 0
A97: 2010910 | B97: 关税征管 | C97: 0
A98: 2010911 | B98: 海关监管 | C98: 0
A99: 2010912 | B99: 检验检疫 | C99: 0
A100: 2010950 | B100: 事业运行 | C100: 0
A101: 2010999 | B101: 其他海关事务支出 | C101: 0
A102: 20111 | B102: 纪检监察事务 | C102: =SUM(C103:C110) -> 1,157
A103: 2011101 | B103: 行政运行 | C103: 1,142
A104: 2011102 | B104: 一般行政管理事务 | C104: 0
A105: 2011103 | B105: 机关服务 | C105: 0
A106: 2011104 | B106: 大案要案查处 | C106: 0
A107: 2011105 | B107: 派驻派出机构 | C107: 0
A108: 2011106 | B108: 巡视工作 | C108: 0
A109: 2011150 | B109: 事业运行 | C109: 0
A110: 2011199 | B110: 其他纪检监察事务支出 | C110: 15
A111: 20113 | B111: 商贸事务 | C111: =SUM(C112:C121) -> 1,240
A112: 2011301 | B112: 行政运行 | C112: 358
A113: 2011302 | B113: 一般行政管理事务 | C113: 17
A114: 2011303 | B114: 机关服务 | C114: 0
A115: 2011304 | B115: 对外贸易管理 | C115: 0
A116: 2011305 | B116: 国际经济合作 | C116: 0
A117: 2011306 | B117: 外资管理 | C117: 0
A118: 2011307 | B118: 国内贸易管理 | C118: 0
A119: 2011308 | B119: 招商引资 | C119: 238
A120: 2011350 | B120: 事业运行 | C120: 35
A121: 2011399 | B121: 其他商贸事务支出 | C121: 592
A122: 20114 | B122: 知识产权事务 | C122: =SUM(C123:C133) -> 0
A123: 2011401 | B123: 行政运行 | C123: 0
A124: 2011402 | B124: 一般行政管理事务 | C124: 0
A125: 2011403 | B125: 机关服务 | C125: 0
A126: 2011404 | B126: 专利审批 | C126: 0
A127: 2011405 | B127: 知识产权战略和规划 | C127: 0
A128: 2011408 | B128: 国际合作与交流 | C128: 0
A129: 2011409 | B129: 知识产权宏观管理 | C129: 0
A130: 2011410 | B130: 商标管理 | C130: 0
A131: 2011411 | B131: 原产地地理标志管理 | C131: 0
A132: 2011450 | B132: 事业运行 | C132: 0
A133: 2011499 | B133: 其他知识产权事务支出 | C133: 0
A134: 20123 | B134: 民族事务 | C134: =SUM(C135:C140) -> 0
A135: 2012301 | B135: 行政运行 | C135: 0
A136: 2012302 | B136: 一般行政管理事务 | C136: 0
A137: 2012303 | B137: 机关服务 | C137: 0
A138: 2012304 | B138: 民族工作专项 | C138: 0
A139: 2012350 | B139: 事业运行 | C139: 0
A140: 2012399 | B140: 其他民族事务支出 | C140: 0
A141: 20125 | B141: 港澳台事务 | C141: =SUM(C142:C148) -> 0
A142: 2012501 | B142: 行政运行 | C142: 0
A143: 2012502 | B143: 一般行政管理事务 | C143: 0
A144: 2012503 | B144: 机关服务 | C144: 0
A145: 2012504 | B145: 港澳事务 | C145: 0
A146: 2012505 | B146: 台湾事务 | C146: 0
A147: 2012550 | B147: 事业运行 | C147: 0
A148: 2012599 | B148: 其他港澳台事务支出 | C148: 0
A149: 20126 | B149: 档案事务 | C149: =SUM(C150:C154) -> 148
A150: 2012601 | B150: 行政运行 | C150: 121
A151: 2012602 | B151: 一般行政管理事务 | C151: 0
A152: 2012603 | B152: 机关服务 | C152: 12
A153: 2012604 | B153: 档案馆 | C153: 12
A154: 2012699 | B154: 其他档案事务支出 | C154: 3
A155: 20128 | B155: 民主党派及工商联事务 | C155: =SUM(C156:C161) -> 17
A156: 2012801 | B156: 行政运行 | C156: 17
A157: 2012802 | B157: 一般行政管理事务 | C157: 0
A158: 2012803 | B158: 机关服务 | C158: 0
A159: 2012804 | B159: 参政议政 | C159: 0
A160: 2012850 | B160: 事业运行 | C160: 0
A161: 2012899 | B161: 其他民主党派及工商联事务支出 | C161: 0
A162: 20129 | B162: 群众团体事务 | C162: =SUM(C163:C168) -> 276
A163: 2012901 | B163: 行政运行 | C163: 156
A164: 2012902 | B164: 一般行政管理事务 | C164: 3
A165: 2012903 | B165: 机关服务 | C165: 39
A166: 2012906 | B166: 工会事务 | C166: 58
A167: 2012950 | B167: 事业运行 | C167: 0
A168: 2012999 | B168: 其他群众团体事务支出 | C168: 20
A169: 20131 | B169: 党委办公厅(室)及相关机构事务 | C169: =SUM(C170:C175) -> 742
A170: 2013101 | B170: 行政运行 | C170: 515
A171: 2013102 | B171: 一般行政管理事务 | C171: 0
A172: 2013103 | B172: 机关服务 | C172: 0
A173: 2013105 | B173: 专项业务 | C173: 0
A174: 2013150 | B174: 事业运行 | C174: 63
A175: 2013199 | B175: 其他党委办公厅(室)及相关机构事务支出 | C175: 164
A176: 20132 | B176: 组织事务 | C176: =SUM(C177:C182) -> 479
A177: 2013201 | B177: 行政运行 | C177: 470
A178: 2013202 | B178: 一般行政管理事务 | C178: 0
A179: 2013203 | B179: 机关服务 | C179: 0
A180: 2013204 | B180: 公务员事务 | C180: 0
A181: 2013250 | B181: 事业运行 | C181: 0
A182: 2013299 | B182: 其他组织事务支出 | C182: 9
A183: 20133 | B183: 宣传事务 | C183: =SUM(C184:C189) -> 407
A184: 2013301 | B184: 行政运行 | C184: 265
A185: 2013302 | B185: 一般行政管理事务 | C185: 3
A186: 2013303 | B186: 机关服务 | C186: 0
A187: 2013304 | B187: 宣传管理 | C187: 0
A188: 2013350 | B188: 事业运行 | C188: 0
A189: 2013399 | B189: 其他宣传事务支出 | C189: 139
A190: 20134 | B190: 统战事务 | C190: =SUM(C191:C197) -> 271
A191: 2013401 | B191: 行政运行 | C191: 240
A192: 2013402 | B192: 一般行政管理事务 | C192: 0
A193: 2013403 | B193: 机关服务 | C193: 0
A194: 2013404 | B194: 宗教事务 | C194: 13
A195: 2013405 | B195: 华侨事务 | C195: 0
A196: 2013450 | B196: 事业运行 | C196: 0
A197: 2013499 | B197: 其他统战事务支出 | C197: 18
A198: 20135 | B198: 对外联络事务 | C198: =SUM(C199:C203) -> 0
A199: 2013501 | B199: 行政运行 | C199: 0
A200: 2013502 | B200: 一般行政管理事务 | C200: 0
... 1151 more rows

Sheet 表7一般公共预算基本支出经济分类情况表（经济科目.）
A1: 表7
A2: 2022年一般公共预算基本支出表（政府经济科目）
C3: 单位：万元
A4: 政府科目编码 | B4: 政府科目名称 | C4: 合计
B6: 合计 | C6: =C7+C12+C23+C29 -> 54945
A7: 501 | B7: 机关工资福利支出 | C7: =SUM(C8:C11) -> 17534
A8: 50199 | B8: 其他工资福利支出
A9: 50103 | B9: 住房公积金 | C9: 1298
A10: 50102 | B10: 社会保障缴费 | C10: 2607
A11: 50101 | B11: 工资奖金津补贴 | C11: 13629
A12: 502 | B12: 机关商品和服务支出 | C12: =SUM(C13:C22) -> 3030
A13: 50201 | B13: 办公经费 | C13: 1979
A14: 50299 | B14: 其他商品和服务支出 | C14: 500
A15: 50207 | B15: 因公出国（境）费用
A16: 50208 | B16: 公务用车运行维护费 | C16: 46
A17: 50209 | B17: 维修（护）费 | C17: 81
A18: 50203 | B18: 培训费 | C18: 142
A19: 50202 | B19: 会议费 | C19: 53
A20: 50205 | B20: 委托业务费 | C20: 81
A21: 50204 | B21: 专用材料购置费 | C21: 1
A22: 50206 | B22: 公务接待费 | C22: 147
A23: 509 | B23: 对个人和家庭的补助 | C23: =SUM(C24:C28) -> 10324
A24: 50905 | B24: 离退休费 | C24: 10170
A25: 50903 | B25: 个人农业生产补贴
A26: 50902 | B26: 助学金
A27: 50901 | B27: 社会福利和救助 | C27: 109
A28: 50999 | B28: 其他对个人和家庭的补助 | C28: 45
A29: 505 | B29: 对事业单位经常性补助 | C29: =SUM(C30:C32) -> 24057
A30: 50501 | B30: 工资福利支出 | C30: 22874
A31: 50502 | B31: 商品和服务支出 | C31: 1183
A32: 50599 | B32: 其他对事业单位补助

Sheet 表8.一般公共预算税收返还和转移支付预算分项目表
A1: 表8
A2: 2022年一般公共预算对下税收返还和转移支付预算分项目表
A3: (因我区镇办作为预算单位管理，此表为空）
A4: 单位：万元
A5: 项 目 | B5: 金额
A6: 合 计
A7: 一、税收返还
A8: 增值税和消费税返还等
A9: 所得税基数返还
A10: 成品油税费改革税收返还
A11: 其他税收返还
A12: 二、一般性转移支付
A13: 均衡性转移支付
A14: 重点生态功能区转移支付
A15: 产粮(油)大县奖励资金
A16: 县级基本财力保障机制奖补资金
A17: 革命老区、民族和边境地区转移支付
A18: 资源枯竭城市转移支付
A19: 固定数额补助
A20: 其中： 调整工资转移支付
A21: 农村税费改革转移支付
A22: 工商部门停征两费等转移支付
A23: 其他
A24: 企业事业单位划转补助收入
A25: 体制结算补助
A26: 基层公检法司转移支付
A27: 义务教育等转移支付
A28: 基本养老金和低保等转移支付
A29: 新型农村合作医疗等转移支付
A30: 农村综合改革转移支付
A31: 其他一般性转移支付
A32: 三、专项转移支付
A33: 一般公共服务
A34: 国防
A35: 公共安全
A36: 教育
A37: 科学技术
A38: 文化体育与传媒
A39: 社会保障和就业
A40: 医疗卫生与计划生育
A41: 节能环保
A42: 城乡社区
A43: 农林水
A44: 交通运输
A45: 资源勘探信息等
A46: 商业服务业等
A47: 金融
A48: 国土海洋气象等
A49: 住房保障
A50: 粮油物资储备
A51: 其他支出
A52: 住房保障
A53: 粮油物资储备
A54: 其他收入

Sheet 表9.一般公共预算税收返还和转移支付预算分地区表
A1: 表9
A2: 2022年一般公共预算对下税收返还和转移支付预算分地区表
A3: (因我区镇办作为预算单位管理，此表为空）
A4: 单位：万元
A5: 地区 | B5: 决 算 数

Sheet 表10、政府一般债券限额和余额情况表.
A1: 表10
A2: 2021年君山区政府一般债务限额和余额情况表
C3: 单位：万元
A4: 单位 | B4: 一般债务限额 | C4: 一般债务余额
A5: 君山区 | B5: 160700 | C5: 160368

Sheet 表11.政府性基金预算收入表
A1: 表11
A2: 2022年政府性基金预算收入明细表
B3: 单位：万元
A4: 项目 | B4: 预算数
A5: 一、农网还贷资金收入
A6: 二、海南省高等级公路车辆通行附加费收入
A7: 三、港口建设费收入
A8: 四、国家电影事业发展专项资金收入
A9: 五、国有土地收益基金收入
A10: 六、农业土地开发资金收入 | B10: 36
A11: 七、国有土地使用权出让收入 | B11: 101920
A12: 八、大中型水库库区基金收入
A13: 九、彩票公益金收入
A14: 十、城市基础设施配套费收入 | B14: 1450
A15: 十一、小型水库移民扶助基金收入
A16: 十二、国家重大水利工程建设基金收入
A17: 十三、车辆通行费
A18: 十四、污水处理费收入 | B18: 450
A19: 十五、彩票发行机构和彩票销售机构的业务费用
A20: 十六、其他政府性基金收入
A21: 十七、专项债券对应项目专项收入
B23: =SUM(B24:B26) -> 0
A33: 收入合计 | B33: =SUM(B5:B21) -> 103856
A34: 转移性收入 | B34: =B35+B38+B39+B41+B42 -> 13582
A35: 政府性基金转移收入 | B35: =SUM(B36:B37) -> 5464
A36: 政府性基金补助收入 | B36: 5464
A37: 政府性基金上解收入
A38: 上年结余收入 | B38: 8118
A39: 调入资金
A40: 其中：地方政府性基金调入专项收入 | B40: =[1]表十!C22 -> 0
A41: 地方政府专项债务收入
A42: 地方政府专项债务转贷收入
A46: 收入总计 | B46: =B33+B34 -> 117438

Sheet 表12.政府性基金预算支出表
A1: 表12
A2: 2022年政府性基金预算支出表
B3: 单位：万元
A4: 项 目 | B4: 预算数
A5: 一、文化旅游体育与传媒支出 | B5: =B6+B12+B18 -> 0
A6: 国家电影事业发展专项资金安排的支出 | B6: =SUM(B7:B11) -> 0
A7: 资助国产影片放映
A8: 资助影院建设
A9: 资助少数民族语电影译制
A10: 购买农村电影公益性放映版权服务
A11: 其他国家电影事业发展专项资金支出
A12: 旅游发展基金支出 | B12: =SUM(B13:B17) -> 0
A13: 宣传促销
A14: 行业规划
A15: 旅游事业补助
A16: 地方旅游开发项目补助
A17: 其他旅游发展基金支出
A18: 国家电影事业发展专项资金对应专项债务收入安排的支出 | B18: =SUM(B19:B20) -> 0
A19: 资助城市影院
A20: 其他国家电影事业发展专项资金对应专项债务收入支出
A21: 二、社会保障和就业支出 | B21: =B22+B26+B30 -> 4308
A22: 大中型水库移民后期扶持基金支出 | B22: =SUM(B23:B25) -> 4308
A23: 移民补助 | B23: 2856
A24: 基础设施建设和经济发展 | B24: 1452
A25: 其他大中型水库移民后期扶持基金支出
A26: 小型水库移民扶助基金安排的支出 | B26: =SUM(B27:B29) -> 0
A27: 移民补助
A28: 基础设施建设和经济发展
A29: 其他小型水库移民扶助基金支出
A30: 小型水库移民扶助基金对应专项债务收入安排的支出 | B30: =SUM(B31:B32) -> 0
A31: 基础设施建设和经济发展
A32: 其他小型水库移民扶助基金对应专项债务收入安排的支出
A33: 三、节能环保支出 | B33: =B34+B39 -> 0
A34: 可再生能源电价附加收入安排的支出 | B34: =SUM(B35:B38) -> 0
A35: 风力发电补助
A36: 太阳能发电补助
A37: 生物质能发电补助
A38: 其他可再生能源电价附加收入安排的支出
A39: 废弃电器电子产品处理基金支出 | B39: =SUM(B40:B43) -> 0
A40: 回收处理费用补贴
A41: 信息系统建设
A42: 基金征管经费
A43: 其他废弃电器电子产品处理基金支出
A44: 四、城乡社区支出 | B44: =B45+B58+B62+B63+B69+B73+B77+B81+B87+B90 -> 62586
A45: 国有土地使用权出让收入安排的支出 | B45: =SUM(B46:B57) -> 60650
A46: 征地和拆迁补偿支出 | B46: 28950
A47: 土地开发支出
A48: 城市建设支出
A49: 农村基础设施建设支出
A50: 补助被征地农民支出
A51: 土地出让业务支出
A52: 廉租住房支出
A53: 支付破产或改制企业职工安置费
A54: 棚户区改造支出
A55: 公共租赁住房支出
A56: 保障性住房租金补贴
A57: 其他国有土地使用权出让收入安排的支出 | B57: 31700
A58: 国有土地收益基金安排的支出 | B58: =SUM(B59:B61) -> 0
A59: 征地和拆迁补偿支出
A60: 土地开发支出
A61: 其他国有土地收益基金支出
A62: 农业土地开发资金安排的支出 | B62: 36
A63: 城市基础设施配套费安排的支出 | B63: =SUM(B64:B68) -> 1450
A64: 城市公共设施
A65: 城市环境卫生
A66: 公有房屋
A67: 城市防洪
A68: 其他城市基础设施配套费安排的支出 | B68: 1450
A69: 污水处理费收入安排的支出 | B69: =SUM(B70:B72) -> 450
A70: 污水处理设施建设和运营
A71: 代征手续费
A72: 其他污水处理费安排的支出 | B72: 450
A73: 土地储备专项债券收入安排的支出 | B73: =SUM(B74:B76) -> 0
A74: 征地和拆迁补偿支出
A75: 土地开发支出
A76: 其他土地储备专项债券收入安排的支出
A77: 棚户区改造专项债券收入安排的支出 | B77: =SUM(B78:B80) -> 0
A78: 征地和拆迁补偿支出
A79: 土地开发支出
A80: 其他棚户区改造专项债券收入安排的支出
A81: 城市基础设施配套费对应专项债务收入安排的支出 | B81: =SUM(B82:B86) -> 0
A82: 城市公共设施
A83: 城市环境卫生
A84: 公有房屋
A85: 城市防洪
A86: 其他城市基础设施配套费对应专项债务收入安排的支出
A87: 污水处理费对应专项债务收入安排的支出 | B87: =SUM(B88:B89) -> 0
A88: 污水处理设施建设和运营
A89: 其他污水处理费对应专项债务收入安排的支出
A90: 国有土地使用权出让收入对应专项债务收入安排的支出 | B90: =SUM(B91:B98) -> 0
A91: 征地和拆迁补偿支出
A92: 土地开发支出
A93: 城市建设支出
A94: 农村基础设施建设支出
A95: 廉租住房支出
A96: 棚户区改造支出
A97: 公共租赁住房支出
A98: 其他国有土地使用权出让收入对应专项债务收入安排的支出
A99: 五、农林水支出 | B99: =B100+B110+B105 -> 3610
A100: 大中型水库库区基金安排的支出 | B100: =SUM(B101:B104) -> 0
A101: 基础设施建设和经济发展
A102: 解决移民遗留问题
A103: 库区防护工程维护
A104: 其他大中型水库库区基金支出
A105: 三峡水库库区基金支出 | B105: =SUM(B106:B109) -> 0
A106: 基础设施建设和经济发展
A107: 解决移民遗留问题
A108: 库区维护和管理
A109: 其他三峡水库库区基金支出
A110: 国家重大水利工程建设基金安排的支出 | B110: =SUM(B111:B114) -> 3610
A111: 南水北调工程建设
A112: 三峡后续工作 | B112: 3610
A113: 地方重大水利工程建设
A114: 其他重大水利工程建设基金支出
A115: 六、交通运输支出 | B115: =B116+B121+B126+B131+B140+B147+B156+B159+B162+B163 -> 0
A116: 海南省高等级公路车辆通行附加费安排的支出 | B116: =SUM(B117:B120) -> 0
A117: 公路建设
A118: 公路养护
A119: 公路还贷
A120: 其他海南省高等级公路车辆通行附加费安排的支出
A121: 车辆通行费安排的支出 | B121: =SUM(B122:B125) -> 0
A122: 公路还贷
A123: 政府还贷公路养护
A124: 政府还贷公路管理
A125: 其他车辆通行费安排的支出
A126: 港口建设费安排的支出 | B126: =SUM(B127:B130) -> 0
A127: 港口设施
A128: 航道建设和维护
A129: 航运保障系统建设
A130: 其他港口建设费安排的支出
A131: 铁路建设基金支出 | B131: =SUM(B132:B139) -> 0
A132: 铁路建设投资
A133: 购置铁路机车车辆
A134: 铁路还贷
A135: 建设项目铺底资金
A136: 勘测设计
A137: 注册资本金
A138: 周转资金
A139: 其他铁路建设基金支出
A140: 船舶油污损害赔偿基金支出 | B140: =SUM(B141:B146) -> 0
A141: 应急处置费用
A142: 控制清除污染
A143: 损失补偿
A144: 生态恢复
A145: 监视监测
A146: 其他船舶油污损害赔偿基金支出
A147: 民航发展基金支出 | B147: =SUM(B148:B155) -> 0
A148: 民航机场建设
A149: 空管系统建设
A150: 民航安全
A151: 航线和机场补贴
A152: 民航节能减排
A153: 通用航空发展
A154: 征管经费
A155: 其他民航发展基金支出
A156: 海南省高等级公路车辆通行附加费对应专项债务收入安排的支出 | B156: =SUM(B157:B158) -> 0
A157: 公路建设
A158: 其他海南省高等级公路车辆通行附加费对应专项债务收入安排的支出
A159: 政府收费公路专项债券收入安排的支出 | B159: =SUM(B160:B161) -> 0
A160: 公路建设
A161: 其他政府收费公路专项债券收入安排的支出
A162: 车辆通行费对应专项债务收入安排的支出
A163: 港口建设费对应专项债务收入安排的支出 | B163: =SUM(B164:B166) -> 0
A164: 港口设施
A165: 航运保障系统建设
A166: 其他港口建设费对应专项债务收入安排的支出
A167: 七、资源勘探工业信息等支出 | B167: =B168 -> 0
A168: 农网还贷资金支出 | B168: =SUM(B169:B170) -> 0
A169: 地方农网还贷资金支出
A170: 其他农网还贷资金支出
A171: 八、其他支出 | B171: =B172+B176+B185 -> 824
A172: 其他政府性基金及对应专项债务收入安排的支出 | B172: =SUM(B173:B175) -> 0
A173: 其他政府性基金安排的支出
A174: 其他地方自行试点项目收益专项债券收入安排的支出
A175: 其他政府性基金债务收入安排的支出
A176: 彩票发行销售机构业务费安排的支出 | B176: =SUM(B177:B184) -> 4
A177: 福利彩票发行机构的业务费支出
A178: 体育彩票发行机构的业务费支出
A179: 福利彩票销售机构的业务费支出 | B179: 4
A180: 体育彩票销售机构的业务费支出
A181: 彩票兑奖周转金支出
A182: 彩票发行销售风险基金支出
A183: 彩票市场调控资金支出
A184: 其他彩票发行销售机构业务费安排的支出
A185: 彩票公益金安排的支出 | B185: =SUM(B186:B195) -> 820
A186: 用于社会福利的彩票公益金支出 | B186: 76
A187: 用于体育事业的彩票公益金支出 | B187: 658
A188: 用于教育事业的彩票公益金支出
A189: 用于红十字事业的彩票公益金支出
A190: 用于残疾人事业的彩票公益金支出 | B190: 39
A191: 用于文化事业的彩票公益金支出
A192: 用于扶贫的彩票公益金支出
A193: 用于法律援助的彩票公益金支出
A194: 用于城乡医疗救助的的彩票公益金支出 | B194: 5
A195: 用于其他社会公益事业的彩票公益金支出 | B195: 42
A196: 九、债务付息支出 | B196: =SUM(B197:B212) -> 2950
A197: 海南省高等级公路车辆通行附加费债务付息支出
A198: 港口建设费债务付息支出
A199: 国家电影事业发展专项资金债务付息支出
A200: 国有土地使用权出让金债务付息支出 | B200: 2950
... 61 more rows

Sheet 表13.政府性基金预算本级支出表
A1: 表13
A2: 2022年政府性基金预算本级支出表
A3: （因我区镇办作为预算单位管理，本级支出与支出数一致）
B4: 单位：万元
A5: 项 目 | B5: 预算数
A6: 一、文化旅游体育与传媒支出 | B6: =B7+B13+B19 -> 0
A7: 国家电影事业发展专项资金安排的支出 | B7: =SUM(B8:B12) -> 0
A8: 资助国产影片放映
A9: 资助影院建设
A10: 资助少数民族语电影译制
A11: 购买农村电影公益性放映版权服务
A12: 其他国家电影事业发展专项资金支出
A13: 旅游发展基金支出 | B13: =SUM(B14:B18) -> 0
A14: 宣传促销
A15: 行业规划
A16: 旅游事业补助
A17: 地方旅游开发项目补助
A18: 其他旅游发展基金支出
A19: 国家电影事业发展专项资金对应专项债务收入安排的支出 | B19: =SUM(B20:B21) -> 0
A20: 资助城市影院
A21: 其他国家电影事业发展专项资金对应专项债务收入支出
A22: 二、社会保障和就业支出 | B22: =B23+B27+B31 -> 4308
A23: 大中型水库移民后期扶持基金支出 | B23: =SUM(B24:B26) -> 4308
A24: 移民补助 | B24: 2856
A25: 基础设施建设和经济发展 | B25: 1452
A26: 其他大中型水库移民后期扶持基金支出
A27: 小型水库移民扶助基金安排的支出 | B27: =SUM(B28:B30) -> 0
A28: 移民补助
A29: 基础设施建设和经济发展
A30: 其他小型水库移民扶助基金支出
A31: 小型水库移民扶助基金对应专项债务收入安排的支出 | B31: =SUM(B32:B33) -> 0
A32: 基础设施建设和经济发展
A33: 其他小型水库移民扶助基金对应专项债务收入安排的支出
A34: 三、节能环保支出 | B34: =B35+B40 -> 0
A35: 可再生能源电价附加收入安排的支出 | B35: =SUM(B36:B39) -> 0
A36: 风力发电补助
A37: 太阳能发电补助
A38: 生物质能发电补助
A39: 其他可再生能源电价附加收入安排的支出
A40: 废弃电器电子产品处理基金支出 | B40: =SUM(B41:B44) -> 0
A41: 回收处理费用补贴
A42: 信息系统建设
A43: 基金征管经费
A44: 其他废弃电器电子产品处理基金支出
A45: 四、城乡社区支出 | B45: =B46+B59+B63+B64+B70+B74+B78+B82+B88+B91 -> 62586
A46: 国有土地使用权出让收入安排的支出 | B46: =SUM(B47:B58) -> 60650
A47: 征地和拆迁补偿支出 | B47: 28950
A48: 土地开发支出
A49: 城市建设支出
A50: 农村基础设施建设支出
A51: 补助被征地农民支出
A52: 土地出让业务支出
A53: 廉租住房支出
A54: 支付破产或改制企业职工安置费
A55: 棚户区改造支出
A56: 公共租赁住房支出
A57: 保障性住房租金补贴
A58: 其他国有土地使用权出让收入安排的支出 | B58: 31700
A59: 国有土地收益基金安排的支出 | B59: =SUM(B60:B62) -> 0
A60: 征地和拆迁补偿支出
A61: 土地开发支出
A62: 其他国有土地收益基金支出
A63: 农业土地开发资金安排的支出 | B63: 36
A64: 城市基础设施配套费安排的支出 | B64: =SUM(B65:B69) -> 1450
A65: 城市公共设施
A66: 城市环境卫生
A67: 公有房屋
A68: 城市防洪
A69: 其他城市基础设施配套费安排的支出 | B69: 1450
A70: 污水处理费收入安排的支出 | B70: =SUM(B71:B73) -> 450
A71: 污水处理设施建设和运营
A72: 代征手续费
A73: 其他污水处理费安排的支出 | B73: 450
A74: 土地储备专项债券收入安排的支出 | B74: =SUM(B75:B77) -> 0
A75: 征地和拆迁补偿支出
A76: 土地开发支出
A77: 其他土地储备专项债券收入安排的支出
A78: 棚户区改造专项债券收入安排的支出 | B78: =SUM(B79:B81) -> 0
A79: 征地和拆迁补偿支出
A80: 土地开发支出
A81: 其他棚户区改造专项债券收入安排的支出
A82: 城市基础设施配套费对应专项债务收入安排的支出 | B82: =SUM(B83:B87) -> 0
A83: 城市公共设施
A84: 城市环境卫生
A85: 公有房屋
A86: 城市防洪
A87: 其他城市基础设施配套费对应专项债务收入安排的支出
A88: 污水处理费对应专项债务收入安排的支出 | B88: =SUM(B89:B90) -> 0
A89: 污水处理设施建设和运营
A90: 其他污水处理费对应专项债务收入安排的支出
A91: 国有土地使用权出让收入对应专项债务收入安排的支出 | B91: =SUM(B92:B99) -> 0
A92: 征地和拆迁补偿支出
A93: 土地开发支出
A94: 城市建设支出
A95: 农村基础设施建设支出
A96: 廉租住房支出
A97: 棚户区改造支出
A98: 公共租赁住房支出
A99: 其他国有土地使用权出让收入对应专项债务收入安排的支出
A100: 五、农林水支出 | B100: =B101+B111+B106 -> 3610
A101: 大中型水库库区基金安排的支出 | B101: =SUM(B102:B105) -> 0
A102: 基础设施建设和经济发展
A103: 解决移民遗留问题
A104: 库区防护工程维护
A105: 其他大中型水库库区基金支出
A106: 三峡水库库区基金支出 | B106: =SUM(B107:B110) -> 0
A107: 基础设施建设和经济发展
A108: 解决移民遗留问题
A109: 库区维护和管理
A110: 其他三峡水库库区基金支出
A111: 国家重大水利工程建设基金安排的支出 | B111: =SUM(B112:B115) -> 3610
A112: 南水北调工程建设
A113: 三峡后续工作 | B113: 3610
A114: 地方重大水利工程建设
A115: 其他重大水利工程建设基金支出
A116: 六、交通运输支出 | B116: =B117+B122+B127+B132+B141+B148+B157+B160+B163+B164 -> 0
A117: 海南省高等级公路车辆通行附加费安排的支出 | B117: =SUM(B118:B121) -> 0
A118: 公路建设
A119: 公路养护
A120: 公路还贷
A121: 其他海南省高等级公路车辆通行附加费安排的支出
A122: 车辆通行费安排的支出 | B122: =SUM(B123:B126) -> 0
A123: 公路还贷
A124: 政府还贷公路养护
A125: 政府还贷公路管理
A126: 其他车辆通行费安排的支出
A127: 港口建设费安排的支出 | B127: =SUM(B128:B131) -> 0
A128: 港口设施
A129: 航道建设和维护
A130: 航运保障系统建设
A131: 其他港口建设费安排的支出
A132: 铁路建设基金支出 | B132: =SUM(B133:B140) -> 0
A133: 铁路建设投资
A134: 购置铁路机车车辆
A135: 铁路还贷
A136: 建设项目铺底资金
A137: 勘测设计
A138: 注册资本金
A139: 周转资金
A140: 其他铁路建设基金支出
A141: 船舶油污损害赔偿基金支出 | B141: =SUM(B142:B147) -> 0
A142: 应急处置费用
A143: 控制清除污染
A144: 损失补偿
A145: 生态恢复
A146: 监视监测
A147: 其他船舶油污损害赔偿基金支出
A148: 民航发展基金支出 | B148: =SUM(B149:B156) -> 0
A149: 民航机场建设
A150: 空管系统建设
A151: 民航安全
A152: 航线和机场补贴
A153: 民航节能减排
A154: 通用航空发展
A155: 征管经费
A156: 其他民航发展基金支出
A157: 海南省高等级公路车辆通行附加费对应专项债务收入安排的支出 | B157: =SUM(B158:B159) -> 0
A158: 公路建设
A159: 其他海南省高等级公路车辆通行附加费对应专项债务收入安排的支出
A160: 政府收费公路专项债券收入安排的支出 | B160: =SUM(B161:B162) -> 0
A161: 公路建设
A162: 其他政府收费公路专项债券收入安排的支出
A163: 车辆通行费对应专项债务收入安排的支出
A164: 港口建设费对应专项债务收入安排的支出 | B164: =SUM(B165:B167) -> 0
A165: 港口设施
A166: 航运保障系统建设
A167: 其他港口建设费对应专项债务收入安排的支出
A168: 七、资源勘探工业信息等支出 | B168: =B169 -> 0
A169: 农网还贷资金支出 | B169: =SUM(B170:B171) -> 0
A170: 地方农网还贷资金支出
A171: 其他农网还贷资金支出
A172: 八、其他支出 | B172: =B173+B177+B186 -> 824
A173: 其他政府性基金及对应专项债务收入安排的支出 | B173: =SUM(B174:B176) -> 0
A174: 其他政府性基金安排的支出
A175: 其他地方自行试点项目收益专项债券收入安排的支出
A176: 其他政府性基金债务收入安排的支出
A177: 彩票发行销售机构业务费安排的支出 | B177: =SUM(B178:B185) -> 4
A178: 福利彩票发行机构的业务费支出
A179: 体育彩票发行机构的业务费支出
A180: 福利彩票销售机构的业务费支出 | B180: 4
A181: 体育彩票销售机构的业务费支出
A182: 彩票兑奖周转金支出
A183: 彩票发行销售风险基金支出
A184: 彩票市场调控资金支出
A185: 其他彩票发行销售机构业务费安排的支出
A186: 彩票公益金安排的支出 | B186: =SUM(B187:B196) -> 820
A187: 用于社会福利的彩票公益金支出 | B187: 76
A188: 用于体育事业的彩票公益金支出 | B188: 658
A189: 用于教育事业的彩票公益金支出
A190: 用于红十字事业的彩票公益金支出
A191: 用于残疾人事业的彩票公益金支出 | B191: 39
A192: 用于文化事业的彩票公益金支出
A193: 用于扶贫的彩票公益金支出
A194: 用于法律援助的彩票公益金支出
A195: 用于城乡医疗救助的的彩票公益金支出 | B195: 5
A196: 用于其他社会公益事业的彩票公益金支出 | B196: 42
A197: 九、债务付息支出 | B197: =SUM(B198:B213) -> 2950
A198: 海南省高等级公路车辆通行附加费债务付息支出
A199: 港口建设费债务付息支出
A200: 国家电影事业发展专项资金债务付息支出
... 61 more rows

Sheet 表14.政府性基金转移支付预算项目表
A1: 表14
A2: 2021年政府性基金转移支付预算分项目表
A3: (因我区镇办作为预算单位管理，此表为空）
B4: 单位：万元
A5: 项 目 | B5: 金 额

Sheet 表15.政府性基金转移支付预算分地区表
A1: 表15
A2: 2021年政府性基金转移支付预算分地区表
A3: (因我区镇办作为预算单位管理，此表为空）
B4: 单位：万元
A5: 地区 | B5: 金额

Sheet 表16.政府专项债券限额和余额情况表
A1: 表16
A2: 2021年君山区政府专项债务限额和余额情况表
C3: 单位：万元
A4: 单位 | B4: 专项债务限额 | C4: 专项债务余额
A6: 君山区 | B6: 87800 | C6: 87759

Sheet 表17.国有资本经营预算收入表
A1: 表17
A2: 2022年国有资本经营预算收入表
A3: （本表无数据）
A4: 项 目 | B4: 预算数
A5: 一、上年结余
A6: 二、当年国有资产收益收入合计
A7: （一）资本性收益
A8: 1、国有独资企业、国有独资公司应上缴的利润
A9: 2、国有控股、参股公司中市属国有股权应分得的股利、红利收入
A10: 3、其他单位因占有使用市属国有资产形成的应上缴的国有资产占用费
A11: 4、其他按规定属于国有资产的资本性收益
A12: （二）产权转让收入、出租出借收入
A13: 1、转让国有独资企业、国有独资公司产权的净收入
A14: 2、转让国有控股、参股公司中市属国有股股权及配股权的净收入
A15: 3、转让其他市属国有资产的净收入
A16: 4、其他按规定属于国有资产的产权转让净收入
A17: 5、出租出借收入
A18: ㈢ 上级补助收入
A19: ㈣ 其他收入
A31: 此表无数据，为空表

Sheet 表18.国有资本经营预算支出表
A1: 表18
A2: 2022年国有资本经营预算支出表
A3: （本表无数据）
A4: 项 目 | B4: 预算数
A5: 三、当年国有资产收益支出合计
A6: （一）资本性支出
A7: 1、新设企业注册资本金投入
A8: 2、现有企业增加注册资本金
A9: 3、购买企业股权
A10: 4、其他资本性支出
A11: （二）费用性支出
A12: 1、改制成本支出
A13: 2、监管费用支出
A14: 3、其他支出
A15: （三）补助下级支出
A17: ㈣ 其他支出
A18: 1、投资项目前期费用
A19: 2、派出的董事、监事、财务总监等人员的工资和经费
A20: 3、企业经营者奖励费用
A21: 4、监管费用
A22: 5、其他费用
A23: 其中：国企改革改制工作经费
A30: 四、当年预算资金结余

Sheet 表19.社会保险基金收入预算表
A1: 表19
A2: 2022年社会保险基金收入预算表
A3: 单位：万元
A4: 项 目 | B4: 合计 | C4: 城乡居民基本养老保险基金 | D4: 机关事业养老保险基金 | E4: 失业保险基金 | F4: 就业专项资金
A5: 一、收入合计 | B5: =SUM(C5:F5) -> 11,981 | C5: 2,058 | D5: 8,420 | E5: 133 | F5: 1,370
A6: 其中:保险费收入 | B6: =SUM(C6:F6) -> 6,758 | C6: 484 | D6: 5,789 | E6: 115 | F6: 370
A7: 利息收入 | B7: 80 | C7: 30 | D7: 37 | E7: 13
A8: 财政补贴收入 | B8: 4,804 | C8: 1,300 | D8: 2,504 | F8: 1,000
A9: 委托投资收益 | B9: 0
A10: 其他收入 | B10: 242 | C10: 242
A11: 转移收入 | B11: 97 | C11: 2 | D11: 90 | E11: 5

Sheet 表20.社会保险基金支出预算表
A1: 表20
A2: 2022年社会保险基金支出预算表
A3: 单位：万元
A4: 项 目 | B4: 合计 | C4: 城乡居民基本养老保险基金 | D4: 机关事业养老保险基金 | E4: 失业保险基金 | F4: 就业专项资金
A5: 支出合计 | B5: =SUM(C5:F5) -> 11,333 | C5: 1,397 | D5: 8,467 | E5: 95 | F5: 1,374
A6: 其中:社会保险待遇支出 | B6: 11,136 | C6: 1,396 | D6: 8,293 | E6: 73 | F6: 1,374
A7: 其他支出 | B7: 22 | E7: 22
A8: 转移支出 | B8: 175 | C8: 1 | D8: 174

Sheet 表21.地方债务限额余额情况表
A1: 表21
A2: 2021年君山区地方债务限额余额表
G3: 单位：万元
A4: 单位 | B4: 2021年政府债务限额 | E4: 2021年政府债务余额
B5: 合计 | C5: 一般 | D5: 专项 | E5: 合计 | F5: 一般 | G5: 专项
A7: 君山区 | B7: =C7+D7 -> 248500 | C7: 160700 | D7: 87800 | E7: =F7+G7 -> 248127 | F7: 160368 | G7: 87759

Sheet 表22.地方政府债券发行、还本付息情况表
A1: 表22
A2: 2021年末地方政府债券发行、还本付息情况表
R3: 单位：万元
A4: 单位 | B4: 地方政府债券发行情况 | N4: 地方政府还本付息情况
B5: 合计 | F5: 一般债券 | J5: 专项债券 | N5: 还本 | Q5: 付息
B6: 合计 | C6: 新增 | D6: 置换 | E6: 再融资 | F6: 小计 | G6: 新增 | H6: 置换 | I6: 再融资 | J6: 小计 | K6: 新增 | L6: 置换 | M6: 再融资 | N6: 合计 | O6: 一般债券 | P6: 专项债券 | Q6: 合计 | R6: 一般债券 | S6: 专项债券
A7: 君山区 | B7: =C7+D7+E7 -> 56443 | C7: =G7+K7 -> 41000 | D7: =H7+L7 -> 0 | E7: =I7+M7 -> 15443 | F7: =SUM(G7:I7) -> 22850 | G7: 10100 | H7: 0 | I7: 12750 | J7: =SUM(K7:M7) -> 33593 | K7: 30900 | L7: 0 | M7: 2693 | N7: =O7+P7 -> 15448 | O7: 12755 | P7: 2693 | Q7: =R7+S7 -> 7614 | R7: 5691 | S7: 1923

Sheet 表23.新增债券资金使用安排情况表
A1: 表23
A2: 2021年新增债券资金使用安排情况表
D3: 单位：万元
A4: 单位编码 | B4: 单位名称 | C4: 金额 | D4: 摘要
B5: 一般债券 | C5: =SUM(C6:C18) -> 10100
A6: 149001 | B6: 岳阳市君山区交通运输局 | C6: 3432 | D6: 解决君山区滨江路及配套设施工程项目一期（G240君山绕城公路）工程款
A7: 149001 | B7: 岳阳市君山区交通运输局 | C7: 580.7 | D7: 解决荆江大道二期工程款
A8: 149001 | B8: 岳阳市君山区交通运输局 | C8: 266 | D8: 解决自然村通水泥（沥青）路资金
A9: 149001 | B9: 岳阳市君山区交通运输局 | C9: 300 | D9: 农村公路项目
A10: 111001 | B10: 岳阳市君山区行政审批服务局 | C10: 1250 | D10: 解决政务中心平台升级改造及信息化项目建设经费
A11: 126001 | B11: 岳阳市君山区教育局 | C11: 489.3 | D11: 解决中心城区学校提质改造部分资金（君小）
A12: 126001 | B12: 岳阳市君山区教育局 | C12: 584 | D12: 解决中心城区学校提质改造部分资金(16中园丁之家)
A13: 126013 | B13: 岳阳市第十六中学 | C13: 800 | D13: 解决十六中建设资金
A14: 139001 | B14: 岳阳市君山区城市管理和综合执法局 | C14: 430 | D14: 解决旅游路地下管网建设工程工程款
A15: 900027 | B15: 君山区公路管理局 | C15: 300 | D15: 解决G240线君山段大修配套资金
A16: 138001 | B16: 岳阳市君山区住房和城乡建设局 | C16: 400 | D16: 解决柳毅路提质改造一期工程进度款
A17: 144006 | B17: 岳阳市君山区乡村振兴服务中心 | C17: 1090 | D17: 乡村振兴专项资金
A18: 145001 | B18: 岳阳市君山区水利局 | C18: 178 | D18: 解决水利建设资金(小水库除险加固)
B19: 专项债券 | C19: =SUM(C20:C22) -> 30900
A20: 900023 | B20: 岳阳市君山区城市建设投资有限公司 | C20: 20000 | D20: 解决专项债券资金
A21: 900023 | B21: 岳阳市君山区城市建设投资有限公司 | C21: 10000 | D21: 解决专项债券资金
A22: 900023 | B22: 岳阳市君山区城市建设投资有限公司 | C22: 900 | D22: 解决专项债券资金
C23: =C5+C19 -> 41000

Sheet 表24.地方政府债券还本付息预算表
A1: 表24
A2: 2022年度地方政府债券还本付息预算表
G3: 单位：万元
A4: 单位 | B4: 地方政府债券还本 | E4: 地方政府付息
B5: 合计 | C5: 一般 | D5: 专项 | E5: 合计 | F5: 一般 | G5: 专项
A6: 君山区 | B6: =C6+D6 -> 44462 | C6: 44462 | E6: =F6+G6 -> 8892 | F6: 5942 | G6: 2950

Sheet 表25.“三公”经费预算表
A1: 表25
A2: 2022年君山区一般预算“三公”经费预算表
F3: 单位：万元
A4: 2022年预算数
A5: 合 计 | B5: 因公出国（境）费 | C5: 公务用车购置及运行费 | F5: 公务接待费
C6: 小计 | D6: 公务用车购置费 | E6: 公务用车运行费
A7: =B7+C7+F7 -> 1872.48 | B7: 9 | C7: 739.54 | E7: 665.58 | F7: 1123.94
A8: 根据上级和区政府部署安排，经区财政局汇总，君山区行政单位（含参照公务员法管理的事业单位）、事业单位和其他单位使用当年一般公共预算拨款（包括一般公共预算经费拨款和纳入一般公共预算管理的非税收入）安排的2022年“三公”经费预算为1872.48万元，同比下降6.2% ，其中：公务接待费1123.94万元；因公出国（境）费9万元；公务用车购置及运行维护费665.58万元。2022年君山区“三公”经费预算数同比上年下降124.89万元。

Sheet 表26.预算绩效管理工作要点
A1: 表26
A2: 岳阳区君山区2022年预算绩效管理工作方案
A4: 2022年度君山区预算绩效管理工作方案 2022年是《岳阳市预算绩效管理实施办法》实施推进年，根据省、市全面实施预算绩效管理总体目标任务，结合我区实际，特制定本工作方案。 一、工作目标 贯彻落实《岳阳市预算绩效管理实施办法》,筑牢绩效管理工作基础，硬化绩效管理责任约束，强化财审联动，主动接受人大监督，推动绩效管理扩面提质，财政资源配置效率和使用效益进一步提高，力争到2022年底基本建成全区全方位、全过程、全覆盖的预算绩效管理体系。 二、工作内容 （一）开展绩效主题培训（1-10月） 以落实《办法》及年度目标为主要内容，组织全区预算绩效管理系统开展全员多元化培训。 1.组织参加上级培训（3-5月）。市局计划在省级预算绩效管理试点县（华容县）或市直部门组织市级绩效管理现场培训，组织预算单位直接参加培训或组织区级专场培训。 2.走出去学习（6-10月）。根据省市财政审计系统安排的学习计划，组织绩效管理团队分批次赴外研讨学习。 （二）完善绩效管理制度（6-12月） 坚持绩效导向，对照省市级构建的预算绩效管理制度体系，进一步健全完善区级预算绩效管理工作机制和制度办法，引导和规范第三方参与绩效管理行为，强化绩效管理责任约束机制。 （三）加强绩效目标管理（全年） 前移绩效管理关口，试点拓展推进事前绩效评估,做优绩效目标管理，力求预算绩效目标与预算编制同步运行。 1.绩效目标申报审核（2021年10-12月） 2022年度预算绩效目标申报与审核，已于2021年10月份与部门预算编制同步启动。财政部门组织对预算绩效目标申报的跟踪审核，并指导录入预算一体化系统，必要时应组织第三方对新增重大政策和项目、基建投资项目独立开展事前绩效评估与绩效目标跟踪评价，申报质量及评价结果将作为预算编制依据。 2.绩效目标批复与公开（1-6月） 试点向区人大报送2022年度一般公共预算编制所涉及的专项支出预算绩效目标编制(草案)。待2022年度部门预算经区人大审查批准后，对标“四本”预算涉及的所有预算绩效目标与预算同步批复。预算单位在公开部门预决算时，应同步公开重点支出项目绩效目标。 （四）实施绩效跟踪监控（全年） 围绕绩效目标的实现程度和预算执行的时效性，对资金绩效运行情况实行“双监控”,实施部门整体和项目支出绩效监控全覆盖，发现问题偏差应给予及时纠正。 1.部门绩效运行监控（5-11月） 预算单位自行开展部门整体支出和项目支出绩效运行监控。并将9月底的监控情况，在10月份后五个工作日内，向财政部门报送绩效监控表，其中部门整体支出和30万以上项目支出需要报送纸质档和电子档监控表。 2.重点绩效跟踪监控（9-12月） 财政部门组织对预算单位报送的绩效运行监控情况，按监控节点进行审核和汇总，视情况选取部分重点支出的政策与项目委托第三方进行重点绩效监控，监控情况并入年度本级综合绩效评价报告，并督导将其监控结果与预算进度安排挂钩。 （五）财政支出绩效评价（4-12月） 财政支出绩效评价与预决算同步实施，全面考量所有财政资金使用的产出和效益。 1.预算单位绩效自评（4-7月） 预算单位组织对2021年度部门整体支出和项目支出开展绩效自评，撰写自评报告。自评范围应覆盖本级全部预算资金（部门整体支出和30万元以上项目支出）；自评材料及附件应于7月15日前报送区财政部门审核。在自评基础上，预算单位应针对上级管理部门及年度绩效管理要求，自行选择1-2个支出项目委托第三方开展部门重点绩效评价或重点绩效监控。针对预算单位自行开展的绩效评价报告质量，财政部门再组织第三方实施跟踪再评价；预算单位应于8月15日前将自评报告在区政府网站专栏公开。 2.财政重点绩效评价（6-12月） 财政重点绩效评价将“扩面提质”再升级，应对标省厅、市局考核要求，延伸择选涉粮资金、民生保障与财政奖补资金、政府债务以及涉及社会关注等重点支出项目。于5月底前将重点绩效评价选项（草案）报同级政府审定；7月底前按程序组织第三方开展现场绩效评价；12月底前完成绩效评价报告，并归集整编2022年度本级财政支出绩效评价工作情况综合报告，上报同级政府、人大及上级主管部门。 （六）强化评价结果应用（全年） 绩效评价有结果，评价结果有应用，逐步实施“五挂钩五约束”机制，是绩效管理实施关键，是全面实施预算绩效管理的责任落脚点。 1.落实评价结果应用整改机制（1-5月） 严格按照《岳阳市预算绩效管理实施办法》要求,健全绩效评价结果反馈和绩效问题整改主体责任机制。区财政局将协同区审计局、驻局纪检组“三组合”成立整改跟踪督导组，对标2021年绩效评价报告反馈4家被评价项目单位的问题点，逐一反馈、回头看，再问效。 2.落实绩效评价结果公开机制（1-6月） 按照“谁花钱谁担责、谁实施谁公开”原则，预算部门应针对2021年度绩效自评、监控和绩效评价发现的问题进行整改，评价结果及整改应用情况随部门决算同步公开。财政部门应归集上报的年度绩效评价结果及应用整改情况的报告，在区政府网站及时公开，做到“非涉密、全公开”，主动接受社会公众监督。 3.落实与预算安排相结合机制（1-12月） 进一步完善绩效评价结果与预算安排相结合机制，对绩效好的政策和项目原则上优先保障，对绩效一般的政策和项目督促整改，对低效无效资金一律削减或取消，对长期沉淀的资金一律收回。 4.落实省市政府绩效考评机制（12月底） 进一步深化预算绩效管理和政府绩效评估有机结合机制。做好2022年省市综合绩效评估对接工作，完善预算部门有关绩效管理考核指标。按绩效考评要求向市财政局报送年度绩效总结与佐证材料。区财政局将对标采集的考评数据上报区政府，并提请对前期绩效管理考评低效单位实施整改问责机制。 5.落实财政审计协同联动机制（全年） 结合区审计局年度审计计划，商定重点选项开展绩效评价，并将绩效管理作为年度审计重点内容,实时开展财审联合行动。针对绩效管理实施过程中发现的问题，财审协同交流成果互用，实现数据和信息共享。 三、工作要求 1.持续推进。坚持以绩效目标为龙头、执行监控为支撑、结果应用为核心，全面构建预算绩效管理问效闭环。实施环节所涉及的事前绩效评估、绩效目标管理、绩效运行监控、绩效评价及其结果应用等系列常态化工作，将按照省市相关制度及明确的规定动作要求，分步骤对点对标执行。所有政府采购项目应按要求在系统中填报绩效目标和自评。 2.责任落实。各预算单位应进一步提高对全面实施预算绩效管理的重要性认识，切实担负全面绩效管理组织责任，发挥绩效管理主体作用；加强在人员、机构和经费方面的基础保障，优化工作流程，强化标准引领，确保全面预算绩效管理延伸至资金使用终端。

Sheet 表27.乡村振兴资金公示网址汇总表.
A1: 表27
A2: 2021年乡村振兴资金公示网址汇总表
A3: 项目名称 | B3: 网 址 | C3: 公示时间
A4: 乡村振兴资金网址： | B4: http://www.junshan.gov.cn/32415/40825/40890/40891/42952/index.htm
A5: 一、乡村振兴相关政策文件
A6: 国务院办公厅关于进一步做好困难群众基本生活保障有关工作的通知 国办发明电〔2021〕2号 | B6: http://www.junshan.gov.cn/32415/40825/40890/40891/40893/content_1787991.html | C6: 2021、1、27
A7: 国务院办公厅关于进一步优化地方政务服务便民热线的指导意见 | B7: http://www.junshan.gov.cn/32415/40825/40890/40891/40895/content_1787993.html | C7: 2021、1、27
A8: 中华人民共和国乡村振兴促进法 | B8: http://www.junshan.gov.cn/32415/40825/40890/40891/40893/content_1874354.html | C8: 2021、5、10
A9: 湖南省人民政府办公厅关于加强村庄规划工作 服务全面推进乡村振兴的通知湘政办发〔2021〕29号 | B9: http://www.junshan.gov.cn/32415/40825/40890/40891/40893/content_1836887.html | C9: 2021、7、20
A10: 湖南省继续大力实施消费帮扶巩固拓展脱贫攻坚成果的实施意见 湘发改西开〔2021〕726号 | B10: http://www.junshan.gov.cn/32415/40825/40890/40891/42950/content_1861067.html | C10: 2021、10、11
A11: 省委省政府发布《关于全面推进乡村振兴 加快农业农村现代化的实施意见》 | B11: http://www.junshan.gov.cn/32415/40825/40890/40891/40893/content_1901883.html | C11: 2022、1、10
A12: 关于印发《君山区财政衔接推进乡村振兴补助资金管理办法》的通知 | B12: http://www.junshan.gov.cn/32415/40825/40890/40891/42952/content_1889861.html | C12: 2021、8、30
A13: 二、乡村振兴资金分配方案
A14: 关于拨付人居环境整治专项扶贫资金的请示 | B14: http://www.junshan.gov.cn/32415/40825/40890/40891/42952/content_1823266.html | C14: 2021、2、1
A15: 2021年中央、省、市级衔接资金分配方案（一） 君乡发[2021]2号 | B15: http://www.junshan.gov.cn/32415/40825/40890/40891/42952/content_1828003.html | C15: 2021、6、16
A16: 2021年中央财政衔接资金分配方案（二） 君乡发〔2021〕3号 | B16: http://www.junshan.gov.cn/32415/40825/40890/40891/42952/content_1838999.html | C16: 2021、7、7
A17: 2021年区级财政衔接资金分配方案（三） 君乡发〔2021〕4号 | B17: http://www.junshan.gov.cn/32415/40825/40890/40891/42952/content_1855260.html | C17: 2021、8、19
A18: 2021年省级财政衔接资金分配方案（四） 君乡发〔2021〕5号 | B18: http://www.junshan.gov.cn/32415/40825/40890/40891/42952/content_1855268.html | C18: 2021、9、8
A19: 2021年区级财政衔接资金（追加）分配方案（五） 君乡发〔2021〕6号 | B19: http://www.junshan.gov.cn/32415/40825/40890/40891/42952/content_1857683.html | C19: 2021、9、27
A20: 2021年省级财政衔接资金分配方案（六） 君乡发〔2021〕9号 | B20: http://www.junshan.gov.cn/32415/40825/40890/40891/42952/content_1874691.html | C20: 2021、11、1
A21: 2021年省级财政衔接资金分配方案（七） 君乡发〔2021〕10号 | B21: http://www.junshan.gov.cn/32415/40825/40890/40891/42952/content_1874690.html | C21: 2021、11、10
A22: 2021年度中央追加财政衔接推进乡村振兴补助资金分配方案（八） 君乡发〔2021〕11号 | B22: http://www.junshan.gov.cn/32415/40825/40890/40891/42952/content_1882342.html | C22: 2021、11、23
A23: 2021年度市级财政衔接推进乡村振兴补助资金分配方案（九） 君乡发〔2021〕12号 | B23: http://www.junshan.gov.cn/32415/40825/40890/40891/42952/content_1886837.html | C23: 2021、12、26
A24: 三、乡村振兴项目库
A25: 关于2021年巩固拓展脱贫攻坚成果和乡村振兴有效衔接项目库审定结果的公示 | B25: http://www.junshan.gov.cn/32415/40825/40890/40891/42952/content_1828073.html | C25: 2021、5、19
A26: 关于2021年巩固拓展脱贫攻坚成果和乡村振兴有效衔接项目库审定结果的公告 | B26: http://www.junshan.gov.cn/32415/40825/40890/40891/42952/content_1828013.html | C26: 2021、6、3
A27: 关于调整2021年巩固拓展脱贫攻坚成果同乡村振兴有效衔接项目库的公示 | B27: http://www.junshan.gov.cn/32415/40825/40890/40891/42952/content_1857685.html | C27: 2021、9、26
A28: 关于调整2021年巩固拓展脱贫攻坚成果同乡村振兴有效衔接项目库的公告 | B28: http://www.junshan.gov.cn/32415/40825/40890/40891/42952/content_1861197.html | C28: 2021、10、8
A29: 关于2022年巩固拓展脱贫攻坚成果和乡村振兴有效衔接项目库审定结果的公示 | B29: http://www.junshan.gov.cn/32415/40825/40890/40891/42952/content_1889757.html | C29: 2021、11、16
A30: 关于2022年巩固拓展脱贫攻坚成果和乡村振兴有效衔接项目计划的公示 | B30: http://www.junshan.gov.cn/32415/40825/40890/40891/42952/content_1889758.html | C30: 2021、11、26
A31: 关于2022年巩固拓展脱贫攻坚成果和乡村振兴有效衔接项目库审定结果的公告 | B31: http://www.junshan.gov.cn/32415/40825/40890/40891/42952/content_1889822.html | C31: 2021、11、26
A32: 关于2021年巩固拓展脱贫攻坚成果同乡村振兴有效衔接项目库完成情况的公示 | B32: http://www.junshan.gov.cn/32415/40825/40890/40891/42952/content_1889595.html | C32: 2021、11、30
A33: 四、其他：
A34: 回首我们一起走过的2020！（脱贫攻坚篇 | B34: http://www.junshan.gov.cn/32415/40825/40890/40891/40894/content_1788000.html | C34: 2021、1、27
A35: 马志光到联点企业项目开展帮扶督导工作 | B35: http://www.junshan.gov.cn/32415/40825/40890/40891/40894/content_1807207.html | C35: 2021、4、12
A36: 关于乡村振兴重点帮扶村审定结果的公示 | B36: http://www.junshan.gov.cn/32415/40825/40890/40891/42952/content_1803800.html | C36: 2021、4、1
